Workbook

Sheet إهداء
A12: هشام أستاذ التعليم الابتدائي مديرية :الجديدة

Sheet TS
J1: السنة الدراسية | M1: 2020-2019 | P1: المواد غير المعممة
J2: الأستاذ(ة) | M2: هشام | P2: الامازيغية
J3: المستوى | M3: الأول | P3: 0
J4: الوحدة الدراسية | M4: المركزية
A5: الأكاديمية الجهوية للتربية والتكوين | J5: الفوج | M5: 1 | P5: وضع 0 إن كانت غير معممة وترك خانات نقطها فارغة
A6: جهة: الدارالبيضاء-سطات | J6: عدد التلاميذ | M6: =MAX(A16:A65) -> 29 | P6: ووضع 1 إن كانت معممة وتعبئة خانات نقطها
A7: مديرية :المحمدية
A8: مؤسسة :النجاح | L8: احصائيات المتعلمين
M9: جدد | N9: مكرر | O9: مجموع
L10: ذكور | M10: =COUNTIFS(D16:D65,"ذ",E16:E65,"") -> 14 | N10: =COUNTIFS(D16:D65,"ذ",E16:E65,"مك") -> 2 | O10: =SUM(M10:N10) -> 16
L11: انات | M11: =COUNTIFS(D16:D65,"أ",E16:E65,"") -> 12 | N11: =COUNTIFS(D16:D39,"أ",E16:E39,"مك") -> 1 | O11: =SUM(M11:N11) -> 13
L12: مجموع | M12: =SUM(M10:M11) -> 26 | N12: =SUM(N10:N11) -> 3 | O12: =SUM(O10:O11) -> 29
A14: ر ت | B14: رقم التلميذ | C14: الاسم و النسب | D14: الجنس | E14: التكرار | F14: رقم | G14: تاريخ | H14: تاريخ | I14: مدة الدراسة | O14: ملاحظات
F15: التسجيل | G15: الازدياد | H15: التسجيل | I15: 1 | J15: 2 | K15: 3 | L15: 4 | M15: 5 | N15: 6
A16: =IF($C16="","", MAX($A$15:$A15)+1 ) -> 1 | B16: AZ22334455 | C16: ياسين النسب1 | D16: ذ | E16: مك | F16: 1400 | G16: 2010-07-20
A17: =IF($C17="","", MAX($A$15:$A16)+1 ) -> 2 | B17: AZ22334456 | C17: ريان النسب2 | D17: ذ | F17: 1401 | G17: 2012-07-04
A18: =IF($C18="","", MAX($A$15:$A17)+1 ) -> 3 | B18: AZ22334457 | C18: يوسف النسب3 | D18: ذ | F18: 1402 | G18: 2010-08-01
A19: =IF($C19="","", MAX($A$15:$A18)+1 ) -> 4 | B19: AZ22334458 | C19: ايناس النسب4 | D19: أ | E19: مك | F19: 1403 | G19: 2012-12-02
A20: =IF($C20="","", MAX($A$15:$A19)+1 ) -> 5 | B20: AZ22334459 | C20: طه النسب5 | D20: ذ | E20: مك | F20: 1404 | G20: 2012-09-25
A21: =IF($C21="","", MAX($A$15:$A20)+1 ) -> 6 | B21: AZ22334460 | C21: أمين النسب6 | D21: ذ | F21: 1405 | G21: 2012-03-12
A22: =IF($C22="","", MAX($A$15:$A21)+1 ) -> 7 | B22: AZ22334461 | C22: ريان النسب7 | D22: ذ | F22: 1406 | G22: 2012-10-01
A23: =IF($C23="","", MAX($A$15:$A22)+1 ) -> 8 | B23: AZ22334462 | C23: نبيل النسب8 | D23: ذ | F23: 1407 | G23: 2012-10-05
A24: =IF($C24="","", MAX($A$15:$A23)+1 ) -> 9 | B24: AZ22334463 | C24: يحيى النسب9 | D24: ذ | F24: 1408 | G24: 2012-07-06
A25: =IF($C25="","", MAX($A$15:$A24)+1 ) -> 10 | B25: AZ22334464 | C25: كريم النسب10 | D25: أ | F25: 1409 | G25: 2012-10-30
A26: =IF($C26="","", MAX($A$15:$A25)+1 ) -> 11 | B26: AZ22334465 | C26: محمد ياسين النسب11 | D26: ذ | F26: 1410 | G26: 2013-03-23
A27: =IF($C27="","", MAX($A$15:$A26)+1 ) -> 12 | B27: AZ22334466 | C27: دعاء النسب12 | D27: أ | F27: 1411 | G27: 2013-03-16
A28: =IF($C28="","", MAX($A$15:$A27)+1 ) -> 13 | B28: AZ22334467 | C28: مريم النسب13 | D28: أ | F28: 1412 | G28: 2012-09-29
A29: =IF($C29="","", MAX($A$15:$A28)+1 ) -> 14 | B29: AZ22334468 | C29: زكريا النسب14 | D29: ذ | F29: 1413 | G29: 2013-02-01
A30: =IF($C30="","", MAX($A$15:$A29)+1 ) -> 15 | B30: AZ22334469 | C30: عبد المطلب النسب15 | D30: ذ | F30: 1414 | G30: 2012-05-23
A31: =IF($C31="","", MAX($A$15:$A30)+1 ) -> 16 | B31: AZ22334470 | C31: حمدي النسب16 | D31: ذ | F31: 1415 | G31: 2012-10-15
A32: =IF($C32="","", MAX($A$15:$A31)+1 ) -> 17 | B32: AZ22334471 | C32: اسماعيل النسب17 | D32: ذ | F32: 1416 | G32: 2012-11-25
A33: =IF($C33="","", MAX($A$15:$A32)+1 ) -> 18 | B33: AZ22334472 | C33: آدم النسب18 | D33: ذ | F33: 1417 | G33: 2012-05-25
A34: =IF($C34="","", MAX($A$15:$A33)+1 ) -> 19 | B34: AZ22334473 | C34: مريم النسب19 | D34: أ | F34: 1418 | G34: 2012-11-10
A35: =IF($C35="","", MAX($A$15:$A34)+1 ) -> 20 | B35: AZ22334474 | C35: راضية النسب20 | D35: أ | F35: 1419 | G35: 2012-05-06
A36: =IF($C36="","", MAX($A$15:$A35)+1 ) -> 21 | B36: AZ22334475 | C36: ريان النسب21 | D36: ذ | F36: 1420 | G36: 2012-09-07
A37: =IF($C37="","", MAX($A$15:$A36)+1 ) -> 22 | B37: AZ22334476 | C37: أيمن النسب22 | D37: ذ | F37: 1421 | G37: 2013-02-26
A38: =IF($C38="","", MAX($A$15:$A37)+1 ) -> 23 | B38: AZ22334477 | C38: ملاك النسب23 | D38: أ | F38: 1422 | G38: 2013-03-21
A39: =IF($C39="","", MAX($A$15:$A38)+1 ) -> 24 | B39: AZ22334478 | C39: مريم النسب24 | D39: أ | F39: 1423 | G39: 2013-02-25
A40: =IF($C40="","", MAX($A$15:$A39)+1 ) -> 25 | B40: AZ22334479 | C40: أمينة النسب25 | D40: أ | F40: 1424 | G40: 2013-03-27
A41: =IF($C41="","", MAX($A$15:$A40)+1 ) -> 26 | B41: AZ22334480 | C41: اكرام النسب26 | D41: أ | F41: 1425 | G41: 2012-07-04
A42: =IF($C42="","", MAX($A$15:$A41)+1 ) -> 27 | B42: AZ22334481 | C42: آية النسب27 | D42: أ | F42: 1426 | G42: 2012-05-15
A43: =IF($C43="","", MAX($A$15:$A42)+1 ) -> 28 | B43: AZ22334482 | C43: غفران النسب28 | D43: أ | F43: 1427 | G43: 2012-10-16
A44: =IF($C44="","", MAX($A$15:$A43)+1 ) -> 29 | B44: AZ22334483 | C44: أميرة النسب29 | D44: أ | F44: 1428 | G44: 2012-08-11
A45: =IF($C45="","", MAX($A$15:$A44)+1 ) -> 
A46: =IF($C46="","", MAX($A$15:$A45)+1 ) -> 
A47: =IF($C47="","", MAX($A$15:$A46)+1 ) -> 
A48: =IF($C48="","", MAX($A$15:$A47)+1 ) -> 
A49: =IF($C49="","", MAX($A$15:$A48)+1 ) -> 
A50: =IF($C50="","", MAX($A$15:$A49)+1 ) -> 
A51: =IF($C51="","", MAX($A$15:$A50)+1 ) -> 
A52: =IF($C52="","", MAX($A$15:$A51)+1 ) -> 
A53: =IF($C53="","", MAX($A$15:$A52)+1 ) -> 
A54: =IF($C54="","", MAX($A$15:$A53)+1 ) -> 
A55: =IF($C55="","", MAX($A$15:$A54)+1 ) -> 
A56: =IF($C56="","", MAX($A$15:$A55)+1 ) -> 
A57: =IF($C57="","", MAX($A$15:$A56)+1 ) -> 
A58: =IF($C58="","", MAX($A$15:$A57)+1 ) -> 
A59: =IF($C59="","", MAX($A$15:$A58)+1 ) -> 
A60: =IF($C60="","", MAX($A$15:$A59)+1 ) -> 
A61: =IF($C61="","", MAX($A$15:$A60)+1 ) -> 
A62: =IF($C62="","", MAX($A$15:$A61)+1 ) -> 
A63: =IF($C63="","", MAX($A$15:$A62)+1 ) -> 
A64: =IF($C64="","", MAX($A$15:$A63)+1 ) -> 
A65: =IF($C65="","", MAX($A$15:$A64)+1 ) -> 

Sheet T1
AL1: العــام الدراســي | AO1: =IF(TS!M1="","",TS!M1) -> 2020-2019
AL2: الأستاذ
C3: =IF(TS!A5="","",TS!A5) -> الأكاديمية الجهوية للتربية والتكوين | AL3: المستوى
C4: =IF(TS!A6="","",TS!A6) -> جهة: الدارالبيضاء-سطات | I4: مجمل نتائج الأسدوس الأول | AL4: الوحدة المدرسية
C5: =IF(TS!A7="","",TS!A7) -> مديرية :المحمدية | AL5: الفوج
C6: =IF(TS!A8="","",TS!A8) -> مؤسسة :النجاح
G7: اللغة العربية | Y7: معدل | Z7: الأمازيغية | AB7: معدل | AC7: التربية الإسلامية | AG7: معدل | AH7: النشاط العلمي | AJ7: معدل | AK7: التربية الفنية | AM7: معدل | AN7: الرياضيات | AP7: معدل | AQ7: الفرنسية | BC7: المعدل | BD7: التربية البدنية | BF7: معدل | BG7: معامل ت ب | BH7: مج المعاملات | BI7: مج المعدلات | BJ7: معدل د1 | BK7: الرتبة | BL7: الميزة
A8: ر.ت | B8: رقم التلميذ | C8: الاسم و النسب | D8: تاريخ الإزدياد | E8: الجنس | F8: ر.التسجيل | G8: التعبير الكتابي | J8: القراءة | M8: الإملاء | P8: الخط | S8: الاستماع والتحدث | V8: النقل | AC8: فرض1 | AD8: فرض2 | AE8: فرض3 | AF8: أنشطة | AQ8: Comptine/chant | AS8: معدل | AT8: Graphisme | AV8: معدل | AW8: Activités orales | AY8: معدل | AZ8: Projet de classe | BB8: معدل
G9: ن1 | H9: ن2 | I9: معدل | J9: ن1 | K9: ن2 | L9: معدل | M9: ن1 | N9: ن2 | O9: معدل | P9: ن1 | Q9: ن2 | R9: معدل | S9: ن1 | T9: ن2 | U9: معدل | V9: ن1 | W9: ن2 | X9: معدل | Y9: الوحدة | Z9: ن1 | AA9: ن2 | AB9: الوحدة | AC9: ن1 | AD9: ن2 | AE9: ن3 | AF9: ن4 | AG9: الوحدة | AH9: ن1 | AI9: ن2 | AJ9: الوحدة | AK9: ن1 | AL9: ن2 | AM9: الوحدة | AN9: ن1 | AO9: ن2 | AP9: الوحدة | AQ9: ن1 | AR9: ن2 | AT9: ن1 | AU9: ن2 | AW9: ن1 | AX9: ن2 | AZ9: ن1 | BA9: ن2 | BC9: للوحدة | BD9: ن1 | BE9: ن2 | BF9: الوحدة
A10: =IF(TS!A16="","",TS!A16) -> 1 | B10: =IF(TS!B16="","",TS!B16) -> AZ22334455 | C10: =IF(TS!C16="","",TS!C16) -> ياسين النسب1 | D10: =IF(TS!G16="","",TS!G16) -> 2010-07-20 | E10: =IF(TS!D16="","",TS!D16) -> ذ | F10: =IF(TS!F16="","",TS!F16) -> 1400 | G10: 6 | H10: 6 | I10: =IF(OR(G10="",H10=""),"",AVERAGE(G10:H10)) -> 6 | J10: 4 | K10: 5 | L10: =IF(OR(J10="",K10=""),"",AVERAGE(J10:K10)) -> 4.5 | M10: 3 | N10: 8 | O10: =IF(OR(M10="",N10=""),"",AVERAGE(M10:N10)) -> 5.5 | P10: 6 | Q10: 6.5 | R10: =IF(OR(P10="",Q10=""),"",AVERAGE(P10:Q10)) -> 6.25 | S10: 4 | T10: 5.5 | U10: =IF(OR(S10="",T10=""),"",AVERAGE(S10:T10)) -> 4.75 | V10: 6.75 | W10: 7 | X10: =IF(OR(V10="",W10=""),"",AVERAGE(V10:W10)) -> 6.875 | Y10: =IF(OR(I10="",L10="",O10="",R10="",U10="",X10=""),"",AVERAGE(I10,L10,O10,R10,U10,X10)) -> 5.645833333 | AB10: =IF(OR(Z10="",AA10=""),"",AVERAGE(Z10:AA10)) ->  | AC10: 5 | AD10: 4 | AE10: 5 | AF10: 4 | AG10: =IF(OR(AC10="",AD10="",AE10="",AF10=""),"",AVERAGE(AC10:AF10)) -> 4.5 | AH10: 6.5 | AI10: 4 | AJ10: =IF(OR(AH10="",AI10=""),"",AVERAGE(AH10:AI10)) -> 5.25 | AK10: 5 | AL10: 7 | AM10: =IF(OR(AK10="",AL10=""),"",AVERAGE(AK10:AL10)) -> 6 | AN10: 3 | AO10: 3 | AP10: =IF(OR(AN10="",AO10=""),"",AVERAGE(AN10:AO10)) -> 3 | AQ10: 4 | AR10: 3 | AS10: =IF(OR(AQ10="",AR10=""),"",AVERAGE(AQ10:AR10)) -> 3.5 | AT10: 7.5 | AU10: 6 | AV10: =IF(OR(AT10="",AU10=""),"",AVERAGE(AT10:AU10)) -> 6.75 | AW10: 3 | AX10: 4 | AY10: =IF(OR(AW10="",AX10=""),"",AVERAGE(AW10:AX10)) -> 3.5 | AZ10: 1 | BA10: 1 | BB10: =IF(OR(AZ10="",BA10=""),"",AVERAGE(AZ10:BA10)) -> 1 | BC10: =IF(OR(AS10="",AV10="",AY10="",BB10=""),"",AVERAGE(AS10,AV10,AY10,BB10)) -> 3.6875 | BD10: 7 | BE10: 8 | BF10: =IF(OR(BD10="",BE10=""),"",AVERAGE(BD10:BE10)) -> 7.5 | BG10: 1 | BH10: =6+BG10+TS!$P$3 -> 7 | BI10: =SUM(BF10,BC10,AP10,AM10,AJ10,AG10,AB10,Y10) -> 35.58333333 | BJ10: =IF(B10="","",BI10/BH10) -> 5.083333333 | BK10: =IF(BJ10="","",RANK(BJ10,$BJ$10:$BJ$69)) -> 23 | BL10: =IF(BJ10="","",IF(BJ10>=8,"تنويه",IF(BJ10>=7,"تشجيع",IF(BJ10>=6,"لوحة الشرف",IF(BJ10>=5,"متوسط",IF(BJ10>=3,"تنبيه","توبيخ")))))) -> متوسط
A11: =IF(TS!A17="","",TS!A17) -> 2 | B11: =IF(TS!B17="","",TS!B17) -> AZ22334456 | C11: =IF(TS!C17="","",TS!C17) -> ريان النسب2 | D11: =IF(TS!G17="","",TS!G17) -> 2012-07-04 | E11: =IF(TS!D17="","",TS!D17) -> ذ | F11: =IF(TS!F17="","",TS!F17) -> 1401 | G11: 5.5 | H11: 9 | I11: =IF(OR(G11="",H11=""),"",AVERAGE(G11:H11)) -> 7.25 | J11: 4.5 | K11: 6.5 | L11: =IF(OR(J11="",K11=""),"",AVERAGE(J11:K11)) -> 5.5 | M11: 1 | N11: 2.5 | O11: =IF(OR(M11="",N11=""),"",AVERAGE(M11:N11)) -> 1.75 | P11: 6 | Q11: 7 | R11: =IF(OR(P11="",Q11=""),"",AVERAGE(P11:Q11)) -> 6.5 | S11: 5.5 | T11: 6 | U11: =IF(OR(S11="",T11=""),"",AVERAGE(S11:T11)) -> 5.75 | V11: 5.5 | W11: 7.5 | X11: =IF(OR(V11="",W11=""),"",AVERAGE(V11:W11)) -> 6.5 | Y11: =IF(OR(I11="",L11="",O11="",R11="",U11="",X11=""),"",AVERAGE(I11,L11,O11,R11,U11,X11)) -> 5.541666667 | AC11: 7.75 | AD11: 8 | AE11: 5 | AF11: 6 | AG11: =IF(OR(AC11="",AD11="",AE11="",AF11=""),"",AVERAGE(AC11:AF11)) -> 6.6875 | AH11: 8 | AI11: 1.5 | AJ11: =IF(OR(AH11="",AI11=""),"",AVERAGE(AH11:AI11)) -> 4.75 | AK11: 6 | AL11: 6.75 | AM11: =IF(OR(AK11="",AL11=""),"",AVERAGE(AK11:AL11)) -> 6.375 | AN11: 5 | AO11: 4.75 | AP11: =IF(OR(AN11="",AO11=""),"",AVERAGE(AN11:AO11)) -> 4.875 | AQ11: 8.5 | AR11: 5 | AS11: =IF(OR(AQ11="",AR11=""),"",AVERAGE(AQ11:AR11)) -> 6.75 | AT11: 7 | AU11: 6 | AV11: =IF(OR(AT11="",AU11=""),"",AVERAGE(AT11:AU11)) -> 6.5 | AW11: 4 | AX11: 5 | AY11: =IF(OR(AW11="",AX11=""),"",AVERAGE(AW11:AX11)) -> 4.5 | AZ11: 1 | BA11: 8.5 | BB11: =IF(OR(AZ11="",BA11=""),"",AVERAGE(AZ11:BA11)) -> 4.75 | BC11: =IF(OR(AS11="",AV11="",AY11="",BB11=""),"",AVERAGE(AS11,AV11,AY11,BB11)) -> 5.625 | BD11: 7 | BE11: 7.5 | BF11: =IF(OR(BD11="",BE11=""),"",AVERAGE(BD11:BE11)) -> 7.25 | BG11: 1 | BH11: =6+BG11+TS!$P$3 -> 7 | BI11: =SUM(BF11,BC11,AP11,AM11,AJ11,AG11,AB11,Y11) -> 41.10416667 | BJ11: =IF(B11="","",BI11/BH11) -> 5.87202381 | BK11: =IF(BJ11="","",RANK(BJ11,$BJ$10:$BJ$69)) -> 20 | BL11: =IF(BJ11="","",IF(BJ11>=8,"تنويه",IF(BJ11>=7,"تشجيع",IF(BJ11>=6,"لوحة الشرف",IF(BJ11>=5,"متوسط",IF(BJ11>=3,"تنبيه","توبيخ")))))) -> متوسط
A12: =IF(TS!A18="","",TS!A18) -> 3 | B12: =IF(TS!B18="","",TS!B18) -> AZ22334457 | C12: =IF(TS!C18="","",TS!C18) -> يوسف النسب3 | D12: =IF(TS!G18="","",TS!G18) -> 2010-08-01 | E12: =IF(TS!D18="","",TS!D18) -> ذ | F12: =IF(TS!F18="","",TS!F18) -> 1402 | G12: 8 | H12: 10 | I12: 9 | J12: 8.5 | K12: 8.5 | L12: 8.5 | M12: 4 | N12: 9 | O12: 6.5 | P12: 9 | Q12: 9 | R12: 9 | S12: 7 | T12: 8.5 | U12: 7.75 | V12: 9 | W12: 9 | X12: 9 | Y12: 8.291666667 | AC12: 9 | AD12: 9 | AE12: 9 | AF12: 8 | AG12: 8.75 | AH12: 10 | AI12: 8.5 | AJ12: 9.25 | AK12: 6 | AL12: 8.5 | AM12: 7.25 | AN12: 9.5 | AO12: 9 | AP12: 9.25 | AQ12: 8.5 | AR12: 7 | AS12: 7.75 | AT12: 8.75 | AU12: 8.5 | AV12: 8.625 | AW12: 6.5 | AX12: 6 | AY12: 6.25 | AZ12: 3 | BA12: 9 | BB12: 6 | BC12: 7.15625 | BD12: 8.5 | BE12: 7.5 | BF12: 8 | BG12: 1 | BH12: =6+BG12+TS!$P$3 -> 7 | BI12: 57.94791667 | BJ12: 8.27827381 | BK12: 1 | BL12: تنويه
A13: =IF(TS!A19="","",TS!A19) -> 4 | B13: =IF(TS!B19="","",TS!B19) -> AZ22334458 | C13: =IF(TS!C19="","",TS!C19) -> ايناس النسب4 | D13: =IF(TS!G19="","",TS!G19) -> 2012-12-02 | E13: =IF(TS!D19="","",TS!D19) -> أ | F13: =IF(TS!F19="","",TS!F19) -> 1403 | G13: 8 | H13: 9 | I13: 8.5 | J13: 8.75 | K13: 9 | L13: 8.875 | M13: 8.5 | N13: 9 | O13: 8.75 | P13: 9 | Q13: 9 | R13: 9 | S13: 7.5 | T13: 8.5 | U13: 8 | V13: 8.75 | W13: 9 | X13: 8.875 | Y13: 8.666666667 | AC13: 8 | AD13: 9 | AE13: 7 | AF13: 9 | AG13: 8.25 | AH13: 7 | AI13: 8 | AJ13: 7.5 | AK13: 5 | AL13: 8 | AM13: 6.5 | AN13: 7.5 | AO13: 7.25 | AP13: 7.375 | AQ13: 8 | AR13: 7 | AS13: 7.5 | AT13: 8.5 | AU13: 8.5 | AV13: 8.5 | AW13: 6 | AX13: 7 | AY13: 6.5 | AZ13: 7 | BA13: 9 | BB13: 8 | BC13: 7.625 | BD13: 8 | BE13: 8 | BF13: 8 | BG13: 1 | BH13: =6+BG13+TS!$P$3 -> 7 | BI13: 53.91666667 | BJ13: 7.702380952 | BK13: 8 | BL13: تشجيع
A14: =IF(TS!A20="","",TS!A20) -> 5 | B14: =IF(TS!B20="","",TS!B20) -> AZ22334459 | C14: =IF(TS!C20="","",TS!C20) -> طه النسب5 | D14: =IF(TS!G20="","",TS!G20) -> 2012-09-25 | E14: =IF(TS!D20="","",TS!D20) -> ذ | F14: =IF(TS!F20="","",TS!F20) -> 1404 | G14: 7 | H14: 9 | I14: 8 | J14: 7.5 | K14: 8.5 | L14: 8 | M14: 7 | N14: 5 | O14: 6 | P14: 7.5 | Q14: 7.5 | R14: 7.5 | S14: 6 | T14: 6.5 | U14: 6.25 | V14: 7 | W14: 7.5 | X14: 7.25 | Y14: 7.166666667 | AC14: 7.75 | AD14: 8 | AE14: 6.5 | AF14: 7 | AG14: 7.3125 | AH14: 9.75 | AI14: 8 | AJ14: 8.875 | AK14: 7.5 | AL14: 7.5 | AM14: 7.5 | AN14: 7.5 | AO14: 6 | AP14: 6.75 | AQ14: 8.5 | AR14: 6 | AS14: 7.25 | AT14: 8.5 | AU14: 6 | AV14: 7.25 | AW14: 5 | AX14: 5 | AY14: 5 | AZ14: 8 | BA14: 8 | BB14: 8 | BC14: 6.875 | BD14: 6.75 | BE14: 7.5 | BF14: 7.125 | BG14: 1 | BH14: =6+BG14+TS!$P$3 -> 7 | BI14: 51.60416667 | BJ14: 7.37202381 | BK14: 10 | BL14: تشجيع
A15: =IF(TS!A21="","",TS!A21) -> 6 | B15: =IF(TS!B21="","",TS!B21) -> AZ22334460 | C15: =IF(TS!C21="","",TS!C21) -> أمين النسب6 | D15: =IF(TS!G21="","",TS!G21) -> 2012-03-12 | E15: =IF(TS!D21="","",TS!D21) -> ذ | F15: =IF(TS!F21="","",TS!F21) -> 1405 | G15: 5.5 | H15: 7 | I15: 6.25 | J15: 4 | K15: 6.5 | L15: 5.25 | M15: 1 | N15: 7 | O15: 4 | P15: 4.5 | Q15: 6.5 | R15: 5.5 | S15: 4.5 | T15: 6 | U15: 5.25 | V15: 6 | W15: 7 | X15: 6.5 | Y15: 5.458333333 | AC15: 8 | AD15: 9 | AE15: 8 | AF15: 8 | AG15: 8.25 | AH15: 3 | AI15: 7 | AJ15: 5 | AK15: 4 | AL15: 8 | AM15: 6 | AN15: 4 | AO15: 5.75 | AP15: 4.875 | AQ15: 8.75 | AR15: 5 | AS15: 6.875 | AT15: 3 | AU15: 8 | AV15: 5.5 | AW15: 4.5 | AX15: 4 | AY15: 4.25 | AZ15: 6 | BA15: 1 | BB15: 3.5 | BC15: 5.03125 | BD15: 6 | BE15: 7 | BF15: 6.5 | BG15: 1 | BH15: =6+BG15+TS!$P$3 -> 7 | BI15: 41.11458333 | BJ15: 5.873511905 | BK15: 19 | BL15: متوسط
A16: =IF(TS!A22="","",TS!A22) -> 7 | B16: =IF(TS!B22="","",TS!B22) -> AZ22334461 | C16: =IF(TS!C22="","",TS!C22) -> ريان النسب7 | D16: =IF(TS!G22="","",TS!G22) -> 2012-10-01 | E16: =IF(TS!D22="","",TS!D22) -> ذ | F16: =IF(TS!F22="","",TS!F22) -> 1406 | G16: 2 | H16: 3 | I16: 2.5 | J16: 3.5 | K16: 3 | L16: 3.25 | M16: 1 | N16: 3 | O16: 2 | P16: 4 | Q16: 4 | R16: 4 | S16: 3.5 | T16: 3 | U16: 3.25 | V16: 1 | W16: 3 | X16: 2 | Y16: 2.833333333 | AC16: 2.5 | AD16: 5 | AE16: 3 | AF16: 4 | AG16: 3.625 | AH16: 1.5 | AI16: 3 | AJ16: 2.25 | AK16: 5 | AL16: 5 | AM16: 5 | AN16: 1 | AO16: 3 | AP16: 2 | AQ16: 2 | AR16: 4 | AS16: 3 | AT16: 6.75 | AU16: 5 | AV16: 5.875 | AW16: 3 | AX16: 3 | AY16: 3 | AZ16: 1 | BA16: 1 | BB16: 1 | BC16: 3.21875 | BD16: 6.5 | BE16: 7 | BF16: 6.75 | BG16: 1 | BH16: =6+BG16+TS!$P$3 -> 7 | BI16: 25.67708333 | BJ16: 3.668154762 | BK16: 28 | BL16: تنبيه
A17: =IF(TS!A23="","",TS!A23) -> 8 | B17: =IF(TS!B23="","",TS!B23) -> AZ22334462 | C17: =IF(TS!C23="","",TS!C23) -> نبيل النسب8 | D17: =IF(TS!G23="","",TS!G23) -> 2012-10-05 | E17: =IF(TS!D23="","",TS!D23) -> ذ | F17: =IF(TS!F23="","",TS!F23) -> 1407 | G17: 7 | H17: 10 | I17: 8.5 | J17: 7.5 | K17: 8.5 | L17: 8 | M17: 6.5 | N17: 10 | O17: 8.25 | P17: 8.75 | Q17: 9.5 | R17: 9.125 | S17: 6.75 | T17: 8.75 | U17: 7.75 | V17: 8.75 | W17: 9.5 | X17: 9.125 | Y17: 8.458333333 | AC17: 9 | AD17: 9 | AE17: 7 | AF17: 9 | AG17: 8.5 | AH17: 5.5 | AI17: 9.5 | AJ17: 7.5 | AK17: 6 | AL17: 8.75 | AM17: 7.375 | AN17: 10 | AO17: 6 | AP17: 8 | AQ17: 8.5 | AR17: 7 | AS17: 7.75 | AT17: 8.75 | AU17: 8.5 | AV17: 8.625 | AW17: 5 | AX17: 6 | AY17: 5.5 | AZ17: 7 | BA17: 9 | BB17: 8 | BC17: 7.46875 | BD17: 8 | BE17: 8 | BF17: 8 | BG17: 1 | BH17: =6+BG17+TS!$P$3 -> 7 | BI17: 55.30208333 | BJ17: 7.900297619 | BK17: 4 | BL17: تشجيع
A18: =IF(TS!A24="","",TS!A24) -> 9 | B18: =IF(TS!B24="","",TS!B24) -> AZ22334463 | C18: =IF(TS!C24="","",TS!C24) -> يحيى النسب9 | D18: =IF(TS!G24="","",TS!G24) -> 2012-07-06 | E18: =IF(TS!D24="","",TS!D24) -> ذ | F18: =IF(TS!F24="","",TS!F24) -> 1408 | G18: 7 | H18: 8 | I18: 7.5 | J18: 8.5 | K18: 9 | L18: 8.75 | M18: 4 | N18: 6 | O18: 5 | P18: 8 | Q18: 8.75 | R18: 8.375 | S18: 6.75 | T18: 7 | U18: 6.875 | V18: 8.5 | W18: 9 | X18: 8.75 | Y18: 7.541666667 | AC18: 7 | AD18: 7.5 | AE18: 6.5 | AF18: 7 | AG18: 7 | AH18: 7.5 | AI18: 3.75 | AJ18: 5.625 | AK18: 5 | AL18: 7 | AM18: 6 | AN18: 4.5 | AO18: 8 | AP18: 6.25 | AQ18: 8 | AR18: 6.5 | AS18: 7.25 | AT18: 8.5 | AU18: 6.5 | AV18: 7.5 | AW18: 4 | AX18: 6 | AY18: 5 | AZ18: 1 | BA18: 6 | BB18: 3.5 | BC18: 5.8125 | BD18: 7.5 | BE18: 7.5 | BF18: 7.5 | BG18: 1 | BH18: =6+BG18+TS!$P$3 -> 7 | BI18: 45.72916667 | BJ18: 6.532738095 | BK18: 12 | BL18: لوحة الشرف
A19: =IF(TS!A25="","",TS!A25) -> 10 | B19: =IF(TS!B25="","",TS!B25) -> AZ22334464 | C19: =IF(TS!C25="","",TS!C25) -> كريم النسب10 | D19: =IF(TS!G25="","",TS!G25) -> 2012-10-30 | E19: =IF(TS!D25="","",TS!D25) -> أ | F19: =IF(TS!F25="","",TS!F25) -> 1409 | G19: 7.5 | H19: 7 | I19: 7.25 | J19: 8.5 | K19: 8.75 | L19: 8.625 | M19: 6.75 | N19: 8.75 | O19: 7.75 | P19: 7 | Q19: 8.75 | R19: 7.875 | S19: 5.75 | T19: 7.5 | U19: 6.625 | V19: 7.75 | W19: 8.5 | X19: 8.125 | Y19: 7.708333333 | AC19: 8 | AD19: 8 | AE19: 8 | AF19: 7.5 | AG19: 7.875 | AH19: 6.75 | AI19: 8.5 | AJ19: 7.625 | AK19: 6 | AL19: 7 | AM19: 6.5 | AN19: 7.5 | AO19: 8.5 | AP19: 8 | AQ19: 7.75 | AR19: 6 | AS19: 6.875 | AT19: 8 | AU19: 6.5 | AV19: 7.25 | AW19: 4 | AX19: 6 | AY19: 5 | AZ19: 7 | BA19: 7 | BB19: 7 | BC19: 6.53125 | BD19: 8 | BE19: 7.5 | BF19: 7.75 | BG19: 1 | BH19: =6+BG19+TS!$P$3 -> 7 | BI19: 51.98958333 | BJ19: 7.427083333 | BK19: 9 | BL19: تشجيع
A20: =IF(TS!A26="","",TS!A26) -> 11 | B20: =IF(TS!B26="","",TS!B26) -> AZ22334465 | C20: =IF(TS!C26="","",TS!C26) -> محمد ياسين النسب11 | D20: =IF(TS!G26="","",TS!G26) -> 2013-03-23 | E20: =IF(TS!D26="","",TS!D26) -> ذ | F20: =IF(TS!F26="","",TS!F26) -> 1410 | G20: 8 | H20: 10 | I20: 9 | J20: 8.75 | K20: 9 | L20: 8.875 | M20: 9 | N20: 9 | O20: 9 | P20: 9 | Q20: 9 | R20: 9 | S20: 7.5 | T20: 9 | U20: 8.25 | V20: 9 | W20: 9 | X20: 9 | Y20: 8.854166667 | AC20: 8 | AD20: 9 | AE20: 7 | AF20: 8.5 | AG20: 8.125 | AH20: 8 | AI20: 9 | AJ20: 8.5 | AK20: 7 | AL20: 8 | AM20: 7.5 | AN20: 7.5 | AO20: 8.25 | AP20: 7.875 | AQ20: 8.5 | AR20: 7 | AS20: 7.75 | AT20: 8.75 | AU20: 8.5 | AV20: 8.625 | AW20: 5 | AX20: 6 | AY20: 5.5 | AZ20: 6 | BA20: 7 | BB20: 6.5 | BC20: 7.09375 | BD20: 8.5 | BE20: 8 | BF20: 8.25 | BG20: 1 | BH20: =6+BG20+TS!$P$3 -> 7 | BI20: 56.19791667 | BJ20: 8.02827381 | BK20: 3 | BL20: تنويه
A21: =IF(TS!A27="","",TS!A27) -> 12 | B21: =IF(TS!B27="","",TS!B27) -> AZ22334466 | C21: =IF(TS!C27="","",TS!C27) -> دعاء النسب12 | D21: =IF(TS!G27="","",TS!G27) -> 2013-03-16 | E21: =IF(TS!D27="","",TS!D27) -> أ | F21: =IF(TS!F27="","",TS!F27) -> 1411 | G21: 4 | H21: 2 | I21: 3 | J21: 3 | K21: 4 | L21: 3.5 | M21: 1 | N21: 1 | O21: 1 | P21: 5 | Q21: 6 | R21: 5.5 | S21: 4 | T21: 5.75 | U21: 4.875 | V21: 4 | W21: 6 | X21: 5 | Y21: 3.8125 | AC21: 7.5 | AD21: 7 | AE21: 5.5 | AF21: 6 | AG21: 6.5 | AH21: 4 | AI21: 2.75 | AJ21: 3.375 | AK21: 5 | AL21: 6.75 | AM21: 5.875 | AN21: 1.5 | AO21: 1.25 | AP21: 1.375 | AQ21: 7 | AR21: 5.5 | AS21: 6.25 | AT21: 6.5 | AU21: 6 | AV21: 6.25 | AW21: 3 | AX21: 4 | AY21: 3.5 | AZ21: 1 | BA21: 8 | BB21: 4.5 | BC21: 5.125 | BD21: 7 | BE21: 7 | BF21: 7 | BG21: 1 | BH21: =6+BG21+TS!$P$3 -> 7 | BI21: 33.0625 | BJ21: 4.723214286 | BK21: 25 | BL21: تنبيه
A22: =IF(TS!A28="","",TS!A28) -> 13 | B22: =IF(TS!B28="","",TS!B28) -> AZ22334467 | C22: =IF(TS!C28="","",TS!C28) -> مريم النسب13 | D22: =IF(TS!G28="","",TS!G28) -> 2012-09-29 | E22: =IF(TS!D28="","",TS!D28) -> أ | F22: =IF(TS!F28="","",TS!F28) -> 1412 | G22: 4 | H22: 1 | I22: 2.5 | J22: 3 | K22: 4.5 | L22: 3.75 | M22: 1 | N22: 1 | O22: 1 | P22: 5 | Q22: 6 | R22: 5.5 | S22: 4.5 | T22: 5 | U22: 4.75 | V22: 4 | W22: 6 | X22: 5 | Y22: 3.75 | AC22: 5.5 | AD22: 8 | AE22: 8 | AF22: 7 | AG22: 7.125 | AH22: 4 | AI22: 3 | AJ22: 3.5 | AK22: 5 | AL22: 6.75 | AM22: 5.875 | AN22: 3.5 | AO22: 3.75 | AP22: 3.625 | AQ22: 7.5 | AR22: 4 | AS22: 5.75 | AT22: 7 | AU22: 6 | AV22: 6.5 | AW22: 3.5 | AX22: 4 | AY22: 3.75 | AZ22: 1 | BA22: 1 | BB22: 1 | BC22: 4.25 | BD22: 7 | BE22: 7 | BF22: 7 | BG22: 1 | BH22: =6+BG22+TS!$P$3 -> 7 | BI22: 35.125 | BJ22: 5.017857143 | BK22: 24 | BL22: متوسط
A23: =IF(TS!A29="","",TS!A29) -> 14 | B23: =IF(TS!B29="","",TS!B29) -> AZ22334468 | C23: =IF(TS!C29="","",TS!C29) -> زكريا النسب14 | D23: =IF(TS!G29="","",TS!G29) -> 2013-02-01 | E23: =IF(TS!D29="","",TS!D29) -> ذ | F23: =IF(TS!F29="","",TS!F29) -> 1413 | G23: 8 | H23: 10 | I23: 9 | J23: 8.75 | K23: 8.75 | L23: 8.75 | M23: 6.5 | N23: 9.5 | O23: 8 | P23: 7.75 | Q23: 7 | R23: 7.375 | S23: 7 | T23: 8.75 | U23: 7.875 | V23: 8 | W23: 8.5 | X23: 8.25 | Y23: 8.208333333 | AC23: 9 | AD23: 9 | AE23: 8 | AF23: 9 | AG23: 8.75 | AH23: 9.5 | AI23: 6.5 | AJ23: 8 | AK23: 6 | AL23: 8.5 | AM23: 7.25 | AN23: 7 | AO23: 7 | AP23: 7 | AQ23: 6.5 | AR23: 8.5 | AS23: 7.5 | AT23: 8.5 | AU23: 7 | AV23: 7.75 | AW23: 6.5 | AX23: 7 | AY23: 6.75 | AZ23: 1 | BA23: 8 | BB23: 4.5 | BC23: 6.625 | BD23: 8.5 | BE23: 8 | BF23: 8.25 | BG23: 1 | BH23: =6+BG23+TS!$P$3 -> 7 | BI23: 54.08333333 | BJ23: 7.726190476 | BK23: 6 | BL23: تشجيع
A24: =IF(TS!A30="","",TS!A30) -> 15 | B24: =IF(TS!B30="","",TS!B30) -> AZ22334469 | C24: =IF(TS!C30="","",TS!C30) -> عبد المطلب النسب15 | D24: =IF(TS!G30="","",TS!G30) -> 2012-05-23 | E24: =IF(TS!D30="","",TS!D30) -> ذ | F24: =IF(TS!F30="","",TS!F30) -> 1414 | G24: 6 | H24: 8 | I24: 7 | J24: 4 | K24: 8 | L24: 6 | M24: 1 | N24: 6.5 | O24: 3.75 | P24: 6 | Q24: 6.5 | R24: 6.25 | S24: 4.5 | T24: 6.75 | U24: 5.625 | V24: 6 | W24: 7 | X24: 6.5 | Y24: 5.854166667 | AC24: 8.5 | AD24: 7 | AE24: 7.5 | AF24: 7 | AG24: 7.5 | AH24: 3 | AI24: 6.5 | AJ24: 4.75 | AK24: 5 | AL24: 7 | AM24: 6 | AN24: 7.5 | AO24: 6.75 | AP24: 7.125 | AQ24: 8.75 | AR24: 7 | AS24: 7.875 | AT24: 6.5 | AU24: 6.75 | AV24: 6.625 | AW24: 4.5 | AX24: 6 | AY24: 5.25 | AZ24: 1 | BA24: 8 | BB24: 4.5 | BC24: 6.0625 | BD24: 7 | BE24: 7.5 | BF24: 7.25 | BG24: 1 | BH24: =6+BG24+TS!$P$3 -> 7 | BI24: 44.54166667 | BJ24: 6.363095238 | BK24: 14 | BL24: لوحة الشرف
A25: =IF(TS!A31="","",TS!A31) -> 16 | B25: =IF(TS!B31="","",TS!B31) -> AZ22334470 | C25: =IF(TS!C31="","",TS!C31) -> حمدي النسب16 | D25: =IF(TS!G31="","",TS!G31) -> 2012-10-15 | E25: =IF(TS!D31="","",TS!D31) -> ذ | F25: =IF(TS!F31="","",TS!F31) -> 1415 | G25: 4 | H25: 1 | I25: 2.5 | J25: 5 | K25: 6.5 | L25: 5.75 | M25: 4 | N25: 2 | O25: 3 | P25: 4 | Q25: 4 | R25: 4 | S25: 4 | T25: 5.5 | U25: 4.75 | V25: 5 | W25: 4 | X25: 4.5 | Y25: 4.083333333 | AC25: 6 | AD25: 7 | AE25: 2 | AF25: 4 | AG25: 4.75 | AH25: 3 | AI25: 4 | AJ25: 3.5 | AK25: 5 | AL25: 5 | AM25: 5 | AN25: 1 | AO25: 2.75 | AP25: 1.875 | AQ25: 4 | AR25: 6.5 | AS25: 5.25 | AT25: 5.5 | AU25: 6 | AV25: 5.75 | AW25: 3 | AX25: 5 | AY25: 4 | AZ25: 1 | BA25: 8 | BB25: 4.5 | BC25: 4.875 | BD25: 6.5 | BE25: 6.5 | BF25: 6.5 | BG25: 1 | BH25: =6+BG25+TS!$P$3 -> 7 | BI25: 30.58333333 | BJ25: 4.369047619 | BK25: 26 | BL25: تنبيه
A26: =IF(TS!A32="","",TS!A32) -> 17 | B26: =IF(TS!B32="","",TS!B32) -> AZ22334471 | C26: =IF(TS!C32="","",TS!C32) -> اسماعيل النسب17 | D26: =IF(TS!G32="","",TS!G32) -> 2012-11-25 | E26: =IF(TS!D32="","",TS!D32) -> ذ | F26: =IF(TS!F32="","",TS!F32) -> 1416 | G26: 4 | H26: 1 | I26: 2.5 | J26: 3 | K26: 4 | L26: 3.5 | M26: 1 | N26: 2.5 | O26: 1.75 | P26: 1 | Q26: 5.75 | R26: 3.375 | S26: 3 | T26: 5 | U26: 4 | V26: 1 | W26: 5.5 | X26: 3.25 | Y26: 3.0625 | AC26: 3.75 | AD26: 6 | AE26: 3.5 | AF26: 5 | AG26: 4.5625 | AH26: 6 | AI26: 1 | AJ26: 3.5 | AK26: 6 | AL26: 6.5 | AM26: 6.25 | AN26: 1.5 | AO26: 2 | AP26: 1.75 | AQ26: 5.5 | AR26: 4 | AS26: 4.75 | AT26: 4 | AU26: 6 | AV26: 5 | AW26: 3 | AX26: 4 | AY26: 3.5 | AZ26: 1 | BA26: 8 | BB26: 4.5 | BC26: 4.4375 | BD26: 6.5 | BE26: 6.5 | BF26: 6.5 | BG26: 1 | BH26: =6+BG26+TS!$P$3 -> 7 | BI26: 30.0625 | BJ26: 4.294642857 | BK26: 27 | BL26: تنبيه
A27: =IF(TS!A33="","",TS!A33) -> 18 | B27: =IF(TS!B33="","",TS!B33) -> AZ22334472 | C27: =IF(TS!C33="","",TS!C33) -> آدم النسب18 | D27: =IF(TS!G33="","",TS!G33) -> 2012-05-25 | E27: =IF(TS!D33="","",TS!D33) -> ذ | F27: =IF(TS!F33="","",TS!F33) -> 1417 | G27: 6.5 | H27: 9 | I27: 7.75 | J27: 7 | K27: 8.75 | L27: 7.875 | M27: 7 | N27: 6.5 | O27: 6.75 | P27: 6.75 | Q27: 6.75 | R27: 6.75 | S27: 6.5 | T27: 6.75 | U27: 6.625 | V27: 6.5 | W27: 6.75 | X27: 6.625 | Y27: 7.0625 | AC27: 8.25 | AD27: 7 | AE27: 7.25 | AF27: 6.5 | AG27: 7.25 | AH27: 5.25 | AI27: 7 | AJ27: 6.125 | AK27: 6 | AL27: 7 | AM27: 6.5 | AN27: 3.75 | AO27: 4.5 | AP27: 4.125 | AQ27: 8 | AR27: 6 | AS27: 7 | AT27: 6.75 | AU27: 6.5 | AV27: 6.625 | AW27: 4 | AX27: 5 | AY27: 4.5 | AZ27: 7 | BA27: 9 | BB27: 8 | BC27: 6.53125 | BD27: 7 | BE27: 7 | BF27: 7 | BG27: 1 | BH27: =6+BG27+TS!$P$3 -> 7 | BI27: 44.59375 | BJ27: 6.370535714 | BK27: 13 | BL27: لوحة الشرف
A28: =IF(TS!A34="","",TS!A34) -> 19 | B28: =IF(TS!B34="","",TS!B34) -> AZ22334473 | C28: =IF(TS!C34="","",TS!C34) -> مريم النسب19 | D28: =IF(TS!G34="","",TS!G34) -> 2012-11-10 | E28: =IF(TS!D34="","",TS!D34) -> أ | F28: =IF(TS!F34="","",TS!F34) -> 1418 | G28: 7.5 | H28: 9 | I28: 8.25 | J28: 8.75 | K28: 8.75 | L28: 8.75 | M28: 9 | N28: 8.75 | O28: 8.875 | P28: 8.75 | Q28: 9 | R28: 8.875 | S28: 7 | T28: 8.75 | U28: 7.875 | V28: 8.5 | W28: 9 | X28: 8.75 | Y28: 8.5625 | AC28: 9 | AD28: 9 | AE28: 9 | AF28: 9 | AG28: 9 | AH28: 5.5 | AI28: 7.5 | AJ28: 6.5 | AK28: 6 | AL28: 8.25 | AM28: 7.125 | AN28: 9 | AO28: 8 | AP28: 8.5 | AQ28: 8.5 | AR28: 7 | AS28: 7.75 | AT28: 8.5 | AU28: 7.5 | AV28: 8 | AW28: 6 | AX28: 6.5 | AY28: 6.25 | AZ28: 4 | BA28: 8 | BB28: 6 | BC28: 7 | BD28: 8 | BE28: 8 | BF28: 8 | BG28: 1 | BH28: =6+BG28+TS!$P$3 -> 7 | BI28: 54.6875 | BJ28: 7.8125 | BK28: 5 | BL28: تشجيع
A29: =IF(TS!A35="","",TS!A35) -> 20 | B29: =IF(TS!B35="","",TS!B35) -> AZ22334474 | C29: =IF(TS!C35="","",TS!C35) -> راضية النسب20 | D29: =IF(TS!G35="","",TS!G35) -> 2012-05-06 | E29: =IF(TS!D35="","",TS!D35) -> أ | F29: =IF(TS!F35="","",TS!F35) -> 1419 | G29: 1 | H29: 1 | I29: 1 | J29: 1 | K29: 1 | L29: 1 | M29: 1 | N29: 1 | O29: 1 | P29: 1 | Q29: 1 | R29: 1 | S29: 1 | T29: 1 | U29: 1 | V29: 1 | W29: 1 | X29: 1 | Y29: 1 | AC29: 1.5 | AD29: 1 | AE29: 4 | AF29: 2 | AG29: 2.125 | AH29: 1.5 | AI29: 1 | AJ29: 1.25 | AK29: 5 | AL29: 4 | AM29: 4.5 | AN29: 1 | AO29: 1 | AP29: 1 | AQ29: 3 | AR29: 1 | AS29: 2 | AT29: 1 | AU29: 4 | AV29: 2.5 | AW29: 1 | AX29: 1 | AY29: 1 | AZ29: 1 | BA29: 1 | BB29: 1 | BC29: 1.625 | BD29: 6 | BE29: 7 | BF29: 6.5 | BG29: 1 | BH29: =6+BG29+TS!$P$3 -> 7 | BI29: 18 | BJ29: 2.571428571 | BK29: 29 | BL29: توبيخ
A30: =IF(TS!A36="","",TS!A36) -> 21 | B30: =IF(TS!B36="","",TS!B36) -> AZ22334475 | C30: =IF(TS!C36="","",TS!C36) -> ريان النسب21 | D30: =IF(TS!G36="","",TS!G36) -> 2012-09-07 | E30: =IF(TS!D36="","",TS!D36) -> ذ | F30: =IF(TS!F36="","",TS!F36) -> 1420 | G30: 7 | H30: 9 | I30: 8 | J30: 7.75 | K30: 8.5 | L30: 8.125 | M30: 4.5 | N30: 6 | O30: 5.25 | P30: 8 | Q30: 6.5 | R30: 7.25 | S30: 6 | T30: 7 | U30: 6.5 | V30: 8.5 | W30: 7 | X30: 7.75 | Y30: 7.145833333 | AC30: 8.5 | AD30: 9 | AE30: 7.5 | AF30: 8 | AG30: 8.25 | AH30: 8 | AI30: 6.25 | AJ30: 7.125 | AK30: 7 | AL30: 8 | AM30: 7.5 | AN30: 5 | AO30: 8 | AP30: 6.5 | AQ30: 8.75 | AR30: 6 | AS30: 7.375 | AT30: 8.5 | AU30: 6.75 | AV30: 7.625 | AW30: 6 | AX30: 5 | AY30: 5.5 | AZ30: 8 | BA30: 9 | BB30: 8.5 | BC30: 7.25 | BD30: 7.5 | BE30: 7.5 | BF30: 7.5 | BG30: 1 | BH30: =6+BG30+TS!$P$3 -> 7 | BI30: 51.27083333 | BJ30: 7.324404762 | BK30: 11 | BL30: تشجيع
A31: =IF(TS!A37="","",TS!A37) -> 22 | B31: =IF(TS!B37="","",TS!B37) -> AZ22334476 | C31: =IF(TS!C37="","",TS!C37) -> أيمن النسب22 | D31: =IF(TS!G37="","",TS!G37) -> 2013-02-26 | E31: =IF(TS!D37="","",TS!D37) -> ذ | F31: =IF(TS!F37="","",TS!F37) -> 1421 | G31: 6 | H31: 7 | I31: 6.5 | J31: 5.5 | K31: 7 | L31: 6.25 | M31: 1 | N31: 2.5 | O31: 1.75 | P31: 6.5 | Q31: 8 | R31: 7.25 | S31: 6 | T31: 6 | U31: 6 | V31: 6 | W31: 9 | X31: 7.5 | Y31: 5.875 | AC31: 8 | AD31: 7 | AE31: 7.5 | AF31: 6.5 | AG31: 7.25 | AH31: 4 | AI31: 2.75 | AJ31: 3.375 | AK31: 5 | AL31: 7.5 | AM31: 6.25 | AN31: 4 | AO31: 6.25 | AP31: 5.125 | AQ31: 8.5 | AR31: 4 | AS31: 6.25 | AT31: 7 | AU31: 6 | AV31: 6.5 | AW31: 5.5 | AX31: 4 | AY31: 4.75 | AZ31: 8 | BA31: 1 | BB31: 4.5 | BC31: 5.5 | BD31: 7 | BE31: 7 | BF31: 7 | BG31: 1 | BH31: =6+BG31+TS!$P$3 -> 7 | BI31: 40.375 | BJ31: 5.767857143 | BK31: 21 | BL31: متوسط
A32: =IF(TS!A38="","",TS!A38) -> 23 | B32: =IF(TS!B38="","",TS!B38) -> AZ22334477 | C32: =IF(TS!C38="","",TS!C38) -> ملاك النسب23 | D32: =IF(TS!G38="","",TS!G38) -> 2013-03-21 | E32: =IF(TS!D38="","",TS!D38) -> أ | F32: =IF(TS!F38="","",TS!F38) -> 1422 | G32: 6 | H32: 4 | I32: 5 | J32: 3 | K32: 4 | L32: 3.5 | M32: 1 | N32: 6.5 | O32: 3.75 | P32: 6.5 | Q32: 6 | R32: 6.25 | S32: 3 | T32: 6 | U32: 4.5 | V32: 7.5 | W32: 7.5 | X32: 7.5 | Y32: 5.083333333 | AC32: 8 | AD32: 8 | AE32: 4.5 | AF32: 6 | AG32: 6.625 | AH32: 5 | AI32: 4.5 | AJ32: 4.75 | AK32: 5 | AL32: 7 | AM32: 6 | AN32: 4.5 | AO32: 3.5 | AP32: 4 | AQ32: 8.5 | AR32: 5 | AS32: 6.75 | AT32: 8.5 | AU32: 8.5 | AV32: 8.5 | AW32: 4 | AX32: 4.5 | AY32: 4.25 | AZ32: 8 | BA32: 7 | BB32: 7.5 | BC32: 6.75 | BD32: 7 | BE32: 7 | BF32: 7 | BG32: 1 | BH32: =6+BG32+TS!$P$3 -> 7 | BI32: 40.20833333 | BJ32: 5.744047619 | BK32: 22 | BL32: متوسط
A33: =IF(TS!A39="","",TS!A39) -> 24 | B33: =IF(TS!B39="","",TS!B39) -> AZ22334478 | C33: =IF(TS!C39="","",TS!C39) -> مريم النسب24 | D33: =IF(TS!G39="","",TS!G39) -> 2013-02-25 | E33: =IF(TS!D39="","",TS!D39) -> أ | F33: =IF(TS!F39="","",TS!F39) -> 1423 | G33: 7.5 | H33: 9 | I33: 8.25 | J33: 7 | K33: 8.5 | L33: 7.75 | M33: 4.5 | N33: 5 | O33: 4.75 | P33: 6 | Q33: 6.5 | R33: 6.25 | S33: 6 | T33: 8.75 | U33: 7.375 | V33: 6 | W33: 6.5 | X33: 6.25 | Y33: 6.770833333 | AC33: 8 | AD33: 9 | AE33: 10 | AF33: 9 | AG33: 9 | AH33: 7 | AI33: 9 | AJ33: 8 | AK33: 5 | AL33: 8 | AM33: 6.5 | AN33: 10 | AO33: 8.5 | AP33: 9.25 | AQ33: 8.5 | AR33: 5.5 | AS33: 7 | AT33: 6 | AU33: 7.5 | AV33: 6.75 | AW33: 6 | AX33: 5 | AY33: 5.5 | AZ33: 8 | BA33: 9 | BB33: 8.5 | BC33: 6.9375 | BD33: 7 | BE33: 8 | BF33: 7.5 | BG33: 1 | BH33: =6+BG33+TS!$P$3 -> 7 | BI33: 53.95833333 | BJ33: 7.708333333 | BK33: 7 | BL33: تشجيع
A34: =IF(TS!A40="","",TS!A40) -> 25 | B34: =IF(TS!B40="","",TS!B40) -> AZ22334479 | C34: =IF(TS!C40="","",TS!C40) -> أمينة النسب25 | D34: =IF(TS!G40="","",TS!G40) -> 2013-03-27 | E34: =IF(TS!D40="","",TS!D40) -> أ | F34: =IF(TS!F40="","",TS!F40) -> 1424 | G34: 6 | H34: 9 | I34: 7.5 | J34: 4 | K34: 7 | L34: 5.5 | M34: 1 | N34: 3.5 | O34: 2.25 | P34: 6 | Q34: 8.5 | R34: 7.25 | S34: 5 | T34: 6.75 | U34: 5.875 | V34: 5.5 | W34: 9 | X34: 7.25 | Y34: 5.9375 | AC34: 8 | AD34: 7 | AE34: 6 | AF34: 7 | AG34: 7 | AH34: 6 | AI34: 4.5 | AJ34: 5.25 | AK34: 6 | AL34: 7.5 | AM34: 6.75 | AN34: 4 | AO34: 5 | AP34: 4.5 | AQ34: 8.5 | AR34: 8 | AS34: 8.25 | AT34: 7 | AU34: 6.5 | AV34: 6.75 | AW34: 4.5 | AX34: 4.5 | AY34: 4.5 | AZ34: 7 | BA34: 8 | BB34: 7.5 | BC34: 6.75 | BD34: 6.5 | BE34: 7.5 | BF34: 7 | BG34: 1 | BH34: =6+BG34+TS!$P$3 -> 7 | BI34: 43.1875 | BJ34: 6.169642857 | BK34: 17 | BL34: لوحة الشرف
A35: =IF(TS!A41="","",TS!A41) -> 26 | B35: =IF(TS!B41="","",TS!B41) -> AZ22334480 | C35: =IF(TS!C41="","",TS!C41) -> اكرام النسب26 | D35: =IF(TS!G41="","",TS!G41) -> 2012-07-04 | E35: =IF(TS!D41="","",TS!D41) -> أ | F35: =IF(TS!F41="","",TS!F41) -> 1425 | G35: 5.5 | H35: 4 | I35: 4.75 | J35: 3 | K35: 5 | L35: 4 | M35: 1 | N35: 6 | O35: 3.5 | P35: 6.25 | Q35: 6.5 | R35: 6.375 | S35: 3.5 | T35: 6 | U35: 4.75 | V35: 6.5 | W35: 6 | X35: 6.25 | Y35: 4.9375 | AC35: 7 | AD35: 8 | AE35: 7 | AF35: 7 | AG35: 7.25 | AH35: 6 | AI35: 3.5 | AJ35: 4.75 | AK35: 6 | AL35: 7 | AM35: 6.5 | AN35: 6 | AO35: 5.25 | AP35: 5.625 | AQ35: 3 | AR35: 4 | AS35: 3.5 | AT35: 8 | AU35: 7 | AV35: 7.5 | AW35: 4 | AX35: 4 | AY35: 4 | AZ35: 1 | BA35: 8 | BB35: 4.5 | BC35: 4.875 | BD35: 7 | BE35: 7.5 | BF35: 7.25 | BG35: 1 | BH35: =6+BG35+TS!$P$3 -> 7 | BI35: 41.1875 | BJ35: 5.883928571 | BK35: 18 | BL35: متوسط
A36: =IF(TS!A42="","",TS!A42) -> 27 | B36: =IF(TS!B42="","",TS!B42) -> AZ22334481 | C36: =IF(TS!C42="","",TS!C42) -> آية النسب27 | D36: =IF(TS!G42="","",TS!G42) -> 2012-05-15 | E36: =IF(TS!D42="","",TS!D42) -> أ | F36: =IF(TS!F42="","",TS!F42) -> 1426 | G36: 5 | H36: 6 | I36: 5.5 | J36: 3 | K36: 7.5 | L36: 5.25 | M36: 3 | N36: 2.5 | O36: 2.75 | P36: 5 | Q36: 6.5 | R36: 5.75 | S36: 4.5 | T36: 6 | U36: 5.25 | V36: 5 | W36: 6.5 | X36: 5.75 | Y36: 5.041666667 | AC36: 7 | AD36: 8 | AE36: 5.5 | AF36: 6.5 | AG36: 6.75 | AH36: 7 | AI36: 3 | AJ36: 5 | AK36: 7.5 | AL36: 7.5 | AM36: 7.5 | AN36: 6 | AO36: 7 | AP36: 6.5 | AQ36: 5.5 | AR36: 6.5 | AS36: 6 | AT36: 7.5 | AU36: 7 | AV36: 7.25 | AW36: 4.5 | AX36: 5 | AY36: 4.75 | AZ36: 8 | BA36: 7.5 | BB36: 7.75 | BC36: 6.4375 | BD36: 6.5 | BE36: 7 | BF36: 6.75 | BG36: 1 | BH36: =6+BG36+TS!$P$3 -> 7 | BI36: 43.97916667 | BJ36: 6.282738095 | BK36: 16 | BL36: لوحة الشرف
A37: =IF(TS!A43="","",TS!A43) -> 28 | B37: =IF(TS!B43="","",TS!B43) -> AZ22334482 | C37: =IF(TS!C43="","",TS!C43) -> غفران النسب28 | D37: =IF(TS!G43="","",TS!G43) -> 2012-10-16 | E37: =IF(TS!D43="","",TS!D43) -> أ | F37: =IF(TS!F43="","",TS!F43) -> 1427 | G37: 5.5 | H37: 7 | I37: 6.25 | J37: 2 | K37: 6.5 | L37: 4.25 | M37: 1 | N37: 1 | O37: 1 | P37: 5.75 | Q37: 7.5 | R37: 6.625 | S37: 6 | T37: 6.5 | U37: 6.25 | V37: 6 | W37: 7.5 | X37: 6.75 | Y37: 5.1875 | AC37: 9 | AD37: 6 | AE37: 8.5 | AF37: 7 | AG37: 7.625 | AH37: 5.5 | AI37: 6.25 | AJ37: 5.875 | AK37: 6 | AL37: 8 | AM37: 7 | AN37: 6.5 | AO37: 5 | AP37: 5.75 | AQ37: 7.5 | AR37: 7 | AS37: 7.25 | AT37: 8 | AU37: 6.5 | AV37: 7.25 | AW37: 4 | AX37: 5 | AY37: 4.5 | AZ37: 6 | BA37: 1 | BB37: 3.5 | BC37: 5.625 | BD37: 7 | BE37: 7 | BF37: 7 | BG37: 1 | BH37: =6+BG37+TS!$P$3 -> 7 | BI37: 44.0625 | BJ37: 6.294642857 | BK37: 15 | BL37: لوحة الشرف
A38: =IF(TS!A44="","",TS!A44) -> 29 | B38: =IF(TS!B44="","",TS!B44) -> AZ22334483 | C38: =IF(TS!C44="","",TS!C44) -> أميرة النسب29 | D38: =IF(TS!G44="","",TS!G44) -> 2012-08-11 | E38: =IF(TS!D44="","",TS!D44) -> أ | F38: =IF(TS!F44="","",TS!F44) -> 1428 | G38: 8 | H38: 9 | I38: 8.5 | J38: 8.5 | K38: 8.75 | L38: 8.625 | M38: 8.75 | N38: 7.5 | O38: 8.125 | P38: 8.5 | Q38: 8 | R38: 8.25 | S38: 7.25 | T38: 9 | U38: 8.125 | V38: 8.75 | W38: 9 | X38: 8.875 | Y38: 8.416666667 | AC38: 7.5 | AD38: 9 | AE38: 8.5 | AF38: 9 | AG38: 8.5 | AH38: 9 | AI38: 7.5 | AJ38: 8.25 | AK38: 8 | AL38: 8 | AM38: 8 | AN38: 8.5 | AO38: 6.25 | AP38: 7.375 | AQ38: 9 | AR38: 7 | AS38: 8 | AT38: 8.5 | AU38: 8.5 | AV38: 8.5 | AW38: 5 | AX38: 7 | AY38: 6 | AZ38: 8 | BA38: 9 | BB38: 8.5 | BC38: 7.75 | BD38: 8 | BE38: 8 | BF38: 8 | BG38: 1 | BH38: =6+BG38+TS!$P$3 -> 7 | BI38: 56.29166667 | BJ38: 8.041666667 | BK38: 2 | BL38: تنويه
A39: =IF(TS!A45="","",TS!A45) ->  | B39: =IF(TS!B45="","",TS!B45) ->  | C39: =IF(TS!C45="","",TS!C45) ->  | D39: =IF(TS!G45="","",TS!G45) ->  | E39: =IF(TS!D45="","",TS!D45) ->  | F39: =IF(TS!F45="","",TS!F45) -> 
A40: =IF(TS!A46="","",TS!A46) ->  | B40: =IF(TS!B46="","",TS!B46) ->  | C40: =IF(TS!C46="","",TS!C46) ->  | D40: =IF(TS!G46="","",TS!G46) ->  | E40: =IF(TS!D46="","",TS!D46) ->  | F40: =IF(TS!F46="","",TS!F46) -> 
A41: =IF(TS!A47="","",TS!A47) ->  | B41: =IF(TS!B47="","",TS!B47) ->  | C41: =IF(TS!C47="","",TS!C47) ->  | D41: =IF(TS!G47="","",TS!G47) ->  | E41: =IF(TS!D47="","",TS!D47) ->  | F41: =IF(TS!F47="","",TS!F47) -> 
A42: =IF(TS!A48="","",TS!A48) ->  | B42: =IF(TS!B48="","",TS!B48) ->  | C42: =IF(TS!C48="","",TS!C48) ->  | D42: =IF(TS!G48="","",TS!G48) ->  | E42: =IF(TS!D48="","",TS!D48) ->  | F42: =IF(TS!F48="","",TS!F48) -> 
A43: =IF(TS!A49="","",TS!A49) ->  | B43: =IF(TS!B49="","",TS!B49) ->  | C43: =IF(TS!C49="","",TS!C49) ->  | D43: =IF(TS!G49="","",TS!G49) ->  | E43: =IF(TS!D49="","",TS!D49) ->  | F43: =IF(TS!F49="","",TS!F49) -> 
A44: =IF(TS!A50="","",TS!A50) ->  | B44: =IF(TS!B50="","",TS!B50) ->  | C44: =IF(TS!C50="","",TS!C50) ->  | D44: =IF(TS!G50="","",TS!G50) ->  | E44: =IF(TS!D50="","",TS!D50) ->  | F44: =IF(TS!F50="","",TS!F50) -> 
A45: =IF(TS!A51="","",TS!A51) ->  | B45: =IF(TS!B51="","",TS!B51) ->  | C45: =IF(TS!C51="","",TS!C51) ->  | D45: =IF(TS!G51="","",TS!G51) ->  | E45: =IF(TS!D51="","",TS!D51) ->  | F45: =IF(TS!F51="","",TS!F51) -> 
A46: =IF(TS!A52="","",TS!A52) ->  | B46: =IF(TS!B52="","",TS!B52) ->  | C46: =IF(TS!C52="","",TS!C52) ->  | D46: =IF(TS!G52="","",TS!G52) ->  | E46: =IF(TS!D52="","",TS!D52) ->  | F46: =IF(TS!F52="","",TS!F52) -> 
A47: =IF(TS!A53="","",TS!A53) ->  | B47: =IF(TS!B53="","",TS!B53) ->  | C47: =IF(TS!C53="","",TS!C53) ->  | D47: =IF(TS!G53="","",TS!G53) ->  | E47: =IF(TS!D53="","",TS!D53) ->  | F47: =IF(TS!F53="","",TS!F53) -> 
A48: =IF(TS!A54="","",TS!A54) ->  | B48: =IF(TS!B54="","",TS!B54) ->  | C48: =IF(TS!C54="","",TS!C54) ->  | D48: =IF(TS!G54="","",TS!G54) ->  | E48: =IF(TS!D54="","",TS!D54) ->  | F48: =IF(TS!F54="","",TS!F54) -> 
A49: =IF(TS!A55="","",TS!A55) ->  | B49: =IF(TS!B55="","",TS!B55) ->  | C49: =IF(TS!C55="","",TS!C55) ->  | D49: =IF(TS!G55="","",TS!G55) ->  | E49: =IF(TS!D55="","",TS!D55) ->  | F49: =IF(TS!F55="","",TS!F55) -> 
A50: =IF(TS!A56="","",TS!A56) ->  | B50: =IF(TS!B56="","",TS!B56) ->  | C50: =IF(TS!C56="","",TS!C56) ->  | D50: =IF(TS!G56="","",TS!G56) ->  | E50: =IF(TS!D56="","",TS!D56) ->  | F50: =IF(TS!F56="","",TS!F56) -> 
A51: =IF(TS!A57="","",TS!A57) ->  | B51: =IF(TS!B57="","",TS!B57) ->  | C51: =IF(TS!C57="","",TS!C57) ->  | D51: =IF(TS!G57="","",TS!G57) ->  | E51: =IF(TS!D57="","",TS!D57) ->  | F51: =IF(TS!F57="","",TS!F57) -> 
A52: =IF(TS!A58="","",TS!A58) ->  | B52: =IF(TS!B58="","",TS!B58) ->  | C52: =IF(TS!C58="","",TS!C58) ->  | D52: =IF(TS!G58="","",TS!G58) ->  | E52: =IF(TS!D58="","",TS!D58) ->  | F52: =IF(TS!F58="","",TS!F58) -> 
A53: =IF(TS!A59="","",TS!A59) ->  | B53: =IF(TS!B59="","",TS!B59) ->  | C53: =IF(TS!C59="","",TS!C59) ->  | D53: =IF(TS!G59="","",TS!G59) ->  | E53: =IF(TS!D59="","",TS!D59) ->  | F53: =IF(TS!F59="","",TS!F59) -> 
A54: =IF(TS!A60="","",TS!A60) ->  | B54: =IF(TS!B60="","",TS!B60) ->  | C54: =IF(TS!C60="","",TS!C60) ->  | D54: =IF(TS!G60="","",TS!G60) ->  | E54: =IF(TS!D60="","",TS!D60) ->  | F54: =IF(TS!F60="","",TS!F60) -> 
A55: =IF(TS!A61="","",TS!A61) ->  | B55: =IF(TS!B61="","",TS!B61) ->  | C55: =IF(TS!C61="","",TS!C61) ->  | D55: =IF(TS!G61="","",TS!G61) ->  | E55: =IF(TS!D61="","",TS!D61) ->  | F55: =IF(TS!F61="","",TS!F61) -> 
A56: =IF(TS!A62="","",TS!A62) ->  | B56: =IF(TS!B62="","",TS!B62) ->  | C56: =IF(TS!C62="","",TS!C62) ->  | D56: =IF(TS!G62="","",TS!G62) ->  | E56: =IF(TS!D62="","",TS!D62) ->  | F56: =IF(TS!F62="","",TS!F62) -> 
A57: =IF(TS!A63="","",TS!A63) ->  | B57: =IF(TS!B63="","",TS!B63) ->  | C57: =IF(TS!C63="","",TS!C63) ->  | D57: =IF(TS!G63="","",TS!G63) ->  | E57: =IF(TS!D63="","",TS!D63) ->  | F57: =IF(TS!F63="","",TS!F63) -> 
A58: =IF(TS!A64="","",TS!A64) ->  | B58: =IF(TS!B64="","",TS!B64) ->  | C58: =IF(TS!C64="","",TS!C64) ->  | D58: =IF(TS!G64="","",TS!G64) ->  | E58: =IF(TS!D64="","",TS!D64) ->  | F58: =IF(TS!F64="","",TS!F64) -> 
A59: =IF(TS!A65="","",TS!A65) ->  | B59: =IF(TS!B65="","",TS!B65) ->  | C59: =IF(TS!C65="","",TS!C65) ->  | D59: =IF(TS!G65="","",TS!G65) ->  | E59: =IF(TS!D65="","",TS!D65) ->  | F59: =IF(TS!F65="","",TS!F65) -> 
A60: =IF(TS!A66="","",TS!A66) ->  | B60: =IF(TS!B66="","",TS!B66) ->  | C60: =IF(TS!C66="","",TS!C66) ->  | D60: =IF(TS!G66="","",TS!G66) ->  | E60: =IF(TS!D66="","",TS!D66) ->  | F60: =IF(TS!F66="","",TS!F66) -> 
A61: =IF(TS!A67="","",TS!A67) ->  | B61: =IF(TS!B67="","",TS!B67) ->  | C61: =IF(TS!C67="","",TS!C67) ->  | D61: =IF(TS!G67="","",TS!G67) ->  | E61: =IF(TS!D67="","",TS!D67) ->  | F61: =IF(TS!F67="","",TS!F67) -> 
A62: =IF(TS!A68="","",TS!A68) ->  | B62: =IF(TS!B68="","",TS!B68) ->  | C62: =IF(TS!C68="","",TS!C68) ->  | D62: =IF(TS!G68="","",TS!G68) ->  | E62: =IF(TS!D68="","",TS!D68) ->  | F62: =IF(TS!F68="","",TS!F68) -> 
A63: =IF(TS!A69="","",TS!A69) ->  | B63: =IF(TS!B69="","",TS!B69) ->  | C63: =IF(TS!C69="","",TS!C69) ->  | D63: =IF(TS!G69="","",TS!G69) ->  | E63: =IF(TS!D69="","",TS!D69) ->  | F63: =IF(TS!F69="","",TS!F69) -> 
A64: =IF(TS!A70="","",TS!A70) ->  | B64: =IF(TS!B70="","",TS!B70) ->  | C64: =IF(TS!C70="","",TS!C70) ->  | D64: =IF(TS!G70="","",TS!G70) ->  | E64: =IF(TS!D70="","",TS!D70) ->  | F64: =IF(TS!F70="","",TS!F70) -> 
A65: =IF(TS!A71="","",TS!A71) ->  | B65: =IF(TS!B71="","",TS!B71) ->  | C65: =IF(TS!C71="","",TS!C71) ->  | D65: =IF(TS!G71="","",TS!G71) ->  | E65: =IF(TS!D71="","",TS!D71) ->  | F65: =IF(TS!F71="","",TS!F71) -> 
A66: =IF(TS!A72="","",TS!A72) ->  | B66: =IF(TS!B72="","",TS!B72) ->  | C66: =IF(TS!C72="","",TS!C72) ->  | D66: =IF(TS!G72="","",TS!G72) ->  | E66: =IF(TS!D72="","",TS!D72) ->  | F66: =IF(TS!F72="","",TS!F72) -> 
A67: =IF(TS!A73="","",TS!A73) ->  | B67: =IF(TS!B73="","",TS!B73) ->  | C67: =IF(TS!C73="","",TS!C73) ->  | D67: =IF(TS!G73="","",TS!G73) ->  | E67: =IF(TS!D73="","",TS!D73) ->  | F67: =IF(TS!F73="","",TS!F73) -> 
A68: =IF(TS!A74="","",TS!A74) ->  | B68: =IF(TS!B74="","",TS!B74) ->  | C68: =IF(TS!C74="","",TS!C74) ->  | D68: =IF(TS!G74="","",TS!G74) ->  | E68: =IF(TS!D74="","",TS!D74) ->  | F68: =IF(TS!F74="","",TS!F74) -> 
A69: =IF(TS!A75="","",TS!A75) ->  | B69: =IF(TS!B75="","",TS!B75) ->  | C69: =IF(TS!C75="","",TS!C75) ->  | D69: =IF(TS!G75="","",TS!G75) ->  | E69: =IF(TS!D75="","",TS!D75) ->  | F69: =IF(TS!F75="","",TS!F75) -> 
A70: =IF(TS!A76="","",TS!A76) ->  | B70: =IF(TS!B76="","",TS!B76) ->  | C70: =IF(TS!C76="","",TS!C76) ->  | D70: =IF(TS!G76="","",TS!G76) ->  | E70: =IF(TS!D76="","",TS!D76) ->  | F70: =IF(TS!F76="","",TS!F76) -> 
A71: =IF(TS!A77="","",TS!A77) ->  | B71: =IF(TS!B77="","",TS!B77) ->  | C71: =IF(TS!C77="","",TS!C77) ->  | D71: =IF(TS!G77="","",TS!G77) ->  | E71: =IF(TS!D77="","",TS!D77) ->  | F71: =IF(TS!F77="","",TS!F77) -> 
A72: =IF(TS!A78="","",TS!A78) ->  | B72: =IF(TS!B78="","",TS!B78) ->  | C72: =IF(TS!C78="","",TS!C78) ->  | D72: =IF(TS!G78="","",TS!G78) ->  | E72: =IF(TS!D78="","",TS!D78) ->  | F72: =IF(TS!F78="","",TS!F78) -> 
A73: =IF(TS!A79="","",TS!A79) ->  | B73: =IF(TS!B79="","",TS!B79) ->  | C73: =IF(TS!C79="","",TS!C79) ->  | D73: =IF(TS!G79="","",TS!G79) ->  | E73: =IF(TS!D79="","",TS!D79) ->  | F73: =IF(TS!F79="","",TS!F79) -> 
A74: =IF(TS!A80="","",TS!A80) ->  | B74: =IF(TS!B80="","",TS!B80) ->  | C74: =IF(TS!C80="","",TS!C80) ->  | D74: =IF(TS!G80="","",TS!G80) ->  | E74: =IF(TS!D80="","",TS!D80) ->  | F74: =IF(TS!F80="","",TS!F80) ->  | BL74: =IF(BJ74="","",IF(BJ74>=8,"تنويه",IF(BJ74>=7,"تشجيع",IF(BJ74>=6,"لوحة الشرف",IF(BJ74>=5,"متوسط",IF(BJ74>=3,"تنبيه","توبيخ")))))) -> 
A75: =IF(TS!A81="","",TS!A81) ->  | B75: =IF(TS!B81="","",TS!B81) ->  | C75: =IF(TS!C81="","",TS!C81) ->  | D75: =IF(TS!G81="","",TS!G81) ->  | E75: =IF(TS!D81="","",TS!D81) ->  | F75: =IF(TS!F81="","",TS!F81) ->  | I75: =IF(OR(G75="",H75=""),"",AVERAGE(G75:H75)) ->  | L75: =IF(OR(J75="",K75=""),"",AVERAGE(J75:K75)) ->  | O75: =IF(OR(M75="",N75=""),"",AVERAGE(M75:N75)) ->  | R75: =IF(OR(P75="",Q75=""),"",AVERAGE(P75:Q75)) ->  | U75: =IF(OR(S75="",T75=""),"",AVERAGE(S75:T75)) ->  | X75: =IF(OR(V75="",W75=""),"",AVERAGE(V75:W75)) ->  | Y75: =IF(OR(I75="",L75="",O75="",R75="",U75="",X75=""),"",AVERAGE(I75,L75,O75,R75,U75,X75)) ->  | AG75: =IF(OR(AC75="",AD75="",AE75="",AF75=""),"",AVERAGE(AC75:AF75)) ->  | AJ75: =IF(OR(AH75="",AI75=""),"",AVERAGE(AH75:AI75)) ->  | AM75: =IF(OR(AK75="",AL75=""),"",AVERAGE(AK75:AL75)) ->  | AP75: =IF(OR(AN75="",AO75=""),"",AVERAGE(AN75:AO75)) ->  | AS75: =IF(OR(AQ75="",AR75=""),"",AVERAGE(AQ75:AR75)) ->  | AV75: =IF(OR(AT75="",AU75=""),"",AVERAGE(AT75:AU75)) ->  | AY75: =IF(OR(AW75="",AX75=""),"",AVERAGE(AW75:AX75)) ->  | BB75: =IF(OR(AZ75="",BA75=""),"",AVERAGE(AZ75:BA75)) ->  | BC75: =IF(OR(AS75="",AV75="",AY75="",BB75=""),"",AVERAGE(AS75,AV75,AY75,BB75)) ->  | BF75: =IF(OR(BD75="",BE75=""),"",AVERAGE(BD75:BE75)) ->  | BJ75: =IF(B75="","",BI75/BH75) ->  | BK75: =IF(BJ75="","",RANK(BJ75,$BJ$10:$BJ$69)) -> 
A76: =IF(TS!A82="","",TS!A82) ->  | B76: =IF(TS!B82="","",TS!B82) ->  | C76: =IF(TS!C82="","",TS!C82) ->  | D76: =IF(TS!G82="","",TS!G82) ->  | E76: =IF(TS!D82="","",TS!D82) ->  | F76: =IF(TS!F82="","",TS!F82) -> 
A77: =IF(TS!A83="","",TS!A83) ->  | B77: =IF(TS!B83="","",TS!B83) ->  | C77: =IF(TS!C83="","",TS!C83) ->  | D77: =IF(TS!G83="","",TS!G83) ->  | E77: =IF(TS!D83="","",TS!D83) ->  | F77: =IF(TS!F83="","",TS!F83) -> 
A78: =IF(TS!A84="","",TS!A84) ->  | B78: =IF(TS!B84="","",TS!B84) ->  | C78: =IF(TS!C84="","",TS!C84) ->  | D78: =IF(TS!G84="","",TS!G84) ->  | E78: =IF(TS!D84="","",TS!D84) ->  | F78: =IF(TS!F84="","",TS!F84) -> 
A79: =IF(TS!A85="","",TS!A85) ->  | B79: =IF(TS!B85="","",TS!B85) ->  | C79: =IF(TS!C85="","",TS!C85) ->  | D79: =IF(TS!G85="","",TS!G85) ->  | E79: =IF(TS!D85="","",TS!D85) ->  | F79: =IF(TS!F85="","",TS!F85) -> 
A80: =IF(TS!A86="","",TS!A86) ->  | B80: =IF(TS!B86="","",TS!B86) ->  | C80: =IF(TS!C86="","",TS!C86) ->  | D80: =IF(TS!G86="","",TS!G86) ->  | E80: =IF(TS!D86="","",TS!D86) ->  | F80: =IF(TS!F86="","",TS!F86) -> 
A81: =IF(TS!A87="","",TS!A87) ->  | B81: =IF(TS!B87="","",TS!B87) ->  | C81: =IF(TS!C87="","",TS!C87) ->  | D81: =IF(TS!G87="","",TS!G87) ->  | E81: =IF(TS!D87="","",TS!D87) ->  | F81: =IF(TS!F87="","",TS!F87) -> 
A82: =IF(TS!A88="","",TS!A88) ->  | B82: =IF(TS!B88="","",TS!B88) ->  | C82: =IF(TS!C88="","",TS!C88) ->  | D82: =IF(TS!G88="","",TS!G88) ->  | E82: =IF(TS!D88="","",TS!D88) ->  | F82: =IF(TS!F88="","",TS!F88) -> 
A83: =IF(TS!A89="","",TS!A89) ->  | B83: =IF(TS!B89="","",TS!B89) ->  | C83: =IF(TS!C89="","",TS!C89) ->  | D83: =IF(TS!G89="","",TS!G89) ->  | E83: =IF(TS!D89="","",TS!D89) ->  | F83: =IF(TS!F89="","",TS!F89) -> 
A84: =IF(TS!A90="","",TS!A90) ->  | B84: =IF(TS!B90="","",TS!B90) ->  | C84: =IF(TS!C90="","",TS!C90) ->  | D84: =IF(TS!G90="","",TS!G90) ->  | E84: =IF(TS!D90="","",TS!D90) ->  | F84: =IF(TS!F90="","",TS!F90) -> 
A85: =IF(TS!A91="","",TS!A91) ->  | B85: =IF(TS!B91="","",TS!B91) ->  | C85: =IF(TS!C91="","",TS!C91) ->  | D85: =IF(TS!G91="","",TS!G91) ->  | E85: =IF(TS!D91="","",TS!D91) ->  | F85: =IF(TS!F91="","",TS!F91) -> 
A86: =IF(TS!A92="","",TS!A92) ->  | B86: =IF(TS!B92="","",TS!B92) ->  | C86: =IF(TS!C92="","",TS!C92) ->  | D86: =IF(TS!G92="","",TS!G92) ->  | E86: =IF(TS!D92="","",TS!D92) ->  | F86: =IF(TS!F92="","",TS!F92) -> 
A87: =IF(TS!A93="","",TS!A93) ->  | B87: =IF(TS!B93="","",TS!B93) ->  | C87: =IF(TS!C93="","",TS!C93) ->  | D87: =IF(TS!G93="","",TS!G93) ->  | E87: =IF(TS!D93="","",TS!D93) ->  | F87: =IF(TS!F93="","",TS!F93) -> 
A88: =IF(TS!A94="","",TS!A94) ->  | B88: =IF(TS!B94="","",TS!B94) ->  | C88: =IF(TS!C94="","",TS!C94) ->  | D88: =IF(TS!G94="","",TS!G94) ->  | E88: =IF(TS!D94="","",TS!D94) ->  | F88: =IF(TS!F94="","",TS!F94) -> 
A89: =IF(TS!A95="","",TS!A95) ->  | B89: =IF(TS!B95="","",TS!B95) ->  | C89: =IF(TS!C95="","",TS!C95) ->  | D89: =IF(TS!G95="","",TS!G95) ->  | E89: =IF(TS!D95="","",TS!D95) ->  | F89: =IF(TS!F95="","",TS!F95) -> 
A90: =IF(TS!A96="","",TS!A96) ->  | B90: =IF(TS!B96="","",TS!B96) ->  | C90: =IF(TS!C96="","",TS!C96) ->  | D90: =IF(TS!G96="","",TS!G96) ->  | E90: =IF(TS!D96="","",TS!D96) ->  | F90: =IF(TS!F96="","",TS!F96) -> 
A91: =IF(TS!A97="","",TS!A97) ->  | B91: =IF(TS!B97="","",TS!B97) ->  | C91: =IF(TS!C97="","",TS!C97) ->  | D91: =IF(TS!G97="","",TS!G97) ->  | E91: =IF(TS!D97="","",TS!D97) ->  | F91: =IF(TS!F97="","",TS!F97) -> 
A92: =IF(TS!A98="","",TS!A98) ->  | B92: =IF(TS!B98="","",TS!B98) ->  | C92: =IF(TS!C98="","",TS!C98) ->  | D92: =IF(TS!G98="","",TS!G98) ->  | E92: =IF(TS!D98="","",TS!D98) ->  | F92: =IF(TS!F98="","",TS!F98) -> 
A93: =IF(TS!A99="","",TS!A99) ->  | B93: =IF(TS!B99="","",TS!B99) ->  | C93: =IF(TS!C99="","",TS!C99) ->  | D93: =IF(TS!G99="","",TS!G99) ->  | E93: =IF(TS!D99="","",TS!D99) ->  | F93: =IF(TS!F99="","",TS!F99) -> 
A94: =IF(TS!A100="","",TS!A100) ->  | B94: =IF(TS!B100="","",TS!B100) ->  | C94: =IF(TS!C100="","",TS!C100) ->  | D94: =IF(TS!G100="","",TS!G100) ->  | E94: =IF(TS!D100="","",TS!D100) ->  | F94: =IF(TS!F100="","",TS!F100) -> 
A95: =IF(TS!A101="","",TS!A101) ->  | B95: =IF(TS!B101="","",TS!B101) ->  | C95: =IF(TS!C101="","",TS!C101) ->  | D95: =IF(TS!G101="","",TS!G101) ->  | E95: =IF(TS!D101="","",TS!D101) ->  | F95: =IF(TS!F101="","",TS!F101) -> 
A96: =IF(TS!A102="","",TS!A102) ->  | B96: =IF(TS!B102="","",TS!B102) ->  | C96: =IF(TS!C102="","",TS!C102) ->  | D96: =IF(TS!G102="","",TS!G102) ->  | E96: =IF(TS!D102="","",TS!D102) ->  | F96: =IF(TS!F102="","",TS!F102) -> 
A97: =IF(TS!A103="","",TS!A103) ->  | B97: =IF(TS!B103="","",TS!B103) ->  | C97: =IF(TS!C103="","",TS!C103) ->  | D97: =IF(TS!G103="","",TS!G103) ->  | E97: =IF(TS!D103="","",TS!D103) ->  | F97: =IF(TS!F103="","",TS!F103) -> 
A98: =IF(TS!A104="","",TS!A104) ->  | B98: =IF(TS!B104="","",TS!B104) ->  | C98: =IF(TS!C104="","",TS!C104) ->  | D98: =IF(TS!G104="","",TS!G104) ->  | E98: =IF(TS!D104="","",TS!D104) ->  | F98: =IF(TS!F104="","",TS!F104) -> 
A99: =IF(TS!A105="","",TS!A105) ->  | B99: =IF(TS!B105="","",TS!B105) ->  | C99: =IF(TS!C105="","",TS!C105) ->  | D99: =IF(TS!G105="","",TS!G105) ->  | E99: =IF(TS!D105="","",TS!D105) ->  | F99: =IF(TS!F105="","",TS!F105) -> 
A100: =IF(TS!A106="","",TS!A106) ->  | B100: =IF(TS!B106="","",TS!B106) ->  | C100: =IF(TS!C106="","",TS!C106) ->  | D100: =IF(TS!G106="","",TS!G106) ->  | E100: =IF(TS!D106="","",TS!D106) ->  | F100: =IF(TS!F106="","",TS!F106) -> 
C101: =IF(TS!C107="","",TS!C107) -> 

Sheet B1
K1: الموسم الدراسي | N1: =IF(TS!$M$1="","",TS!$M$1) -> 2020-2019
K2: الاسم و النسب | N2: =IF(N7="","",VLOOKUP(N5,base1,3,0)) -> ياسين النسب1
A3: =IF(TS!$A$5="","",TS!$A$5) -> الأكاديمية الجهوية للتربية والتكوين | K3: الرقم الوطني | N3: =IF(N7="","",VLOOKUP(N5,base1,2,0)) -> AZ22334455
A4: =IF(TS!$A$6="","",TS!$A$6) -> جهة: الدارالبيضاء-سطات | K4: رقم التسجيل | N4: =IF(N7="","",VLOOKUP(N5,base1,6,0)) -> 1400
A5: =IF(TS!$A$7="","",TS!$A$7) -> مديرية :المحمدية | K5: رقم ت في القسم | N5: 1
A6: =IF(TS!$A$8="","",TS!$A$8) -> مؤسسة :النجاح | K6: المستوى | N6: =IF(TS!$M$3="","",TS!$M$3) -> الأول
K7: عدد التلاميذ | N7: =IF(TS!$O$12=0,"",TS!$O$12) -> 29
B9: بطاقة المراقبة المستمرة
C12: مدرسة | I12: =IF(TS!$M$4="","",TS!$M$4) -> المركزية
C13: الاسم والنسب | I13: =IF(N7="","",VLOOKUP(N5,base1,3,0)) -> ياسين النسب1
B15: نتائج الأسدوس الأول
A17: الوحدات | D17: الانشطة | G17: الدورة الأولى | M17: ملاحظات
G18: النقطة1 | I18: النقطة2 | L18: المعدل
A19: اللغة العربية | D19: التعبيرالكتابي | G19: =IF(N7="","",VLOOKUP(N5,base1,7,0)) -> 6 | I19: =IF(N7="","",VLOOKUP(N5,base1,8,0)) -> 6 | L19: =IF(N7="","",VLOOKUP(N5,base1,9,0)) -> 6 | M19: =IF(L25="","",IF(L25>=9,"عمل ممتاز",IF(L25>=8,"نتائج حسنة",IF(L25>=7,"عمل مستحسن",IF(L25>=6,"نتائج لابأس بها",IF(L25>=5,"عمل متوسط",IF(L25>=4,"عمل دون متوسط","عليك بالاجتهاد أكثر"))))))) -> عمل متوسط
D20: القراءة | G20: =IF(N7="","",VLOOKUP(N5,base1,10,0)) -> 4 | I20: =IF(N7="","",VLOOKUP(N5,base1,11,0)) -> 5 | L20: =IF(N7="","",VLOOKUP(N5,base1,12,0)) -> 4.5
D21: الإملاء | G21: =IF(N7="","",VLOOKUP(N5,base1,13,0)) -> 3 | I21: =IF(N7="","",VLOOKUP(N5,base1,14,0)) -> 8 | L21: =IF(N7="","",VLOOKUP(N5,base1,15,0)) -> 5.5
D22: الخط | G22: =IF(N7="","",VLOOKUP(N5,base1,16,0)) -> 6 | I22: =IF(N7="","",VLOOKUP(N5,base1,17,0)) -> 6.5 | L22: =IF(N7="","",VLOOKUP(N5,base1,18,0)) -> 6.25
D23: الاستماع والتحدث | G23: =IF(N7="","",VLOOKUP(N5,base1,19,0)) -> 4 | I23: =IF(N7="","",VLOOKUP(N5,base1,20,0)) -> 5.5 | L23: =IF(N7="","",VLOOKUP(N5,base1,21,0)) -> 4.75
D24: النقل | G24: =IF(N7="","",VLOOKUP(N5,base1,22,0)) -> 6.75 | I24: =IF(N7="","",VLOOKUP(N5,base1,23,0)) -> 7 | L24: =IF(N7="","",VLOOKUP(N5,base1,24,0)) -> 6.875
D25: معدل الوحدة | L25: =IF(N7="","",VLOOKUP(N5,base1,25,0)) -> 5.645833333
A26: اللغة | D26: الأمازيغية | G26: =IF(TS!$P$3=0,"",VLOOKUP(N5,base1,26,0)) ->  | I26: =IF(TS!$P$3=0,"",VLOOKUP(N5,base1,27,0)) ->  | L26: =IF(TS!$P$3=0,"",VLOOKUP(N5,base1,28,0)) ->  | M26: =IF(L27="","الأمازيغية غير معممة",IF(L27>=9,"عمل ممتاز",IF(L27>=8,"نتائج حسنة",IF(L27>=7,"عمل مستحسن",IF(L27>=6,"نتائج لابأس بها",IF(L27>=5,"عمل متوسط",IF(L27>=4,"عمل دون متوسط","عليك بالاجتهاد أكثر"))))))) -> الأمازيغية غير معممة
A27: الأمازيغية | D27: معدل الوحدة
A28: التربية | D28: الفرض 1 | G28: =IF(N7="","",VLOOKUP(N5,base1,29,0)) -> 5 | L28: =IF(N7="","",VLOOKUP(N5,base1,29,0)) -> 5 | M28: =IF(L32="","",IF(L32>=9,"عمل ممتاز",IF(L32>=8,"نتائج حسنة",IF(L32>=7,"عمل مستحسن",IF(L32>=6,"نتائج لابأس بها",IF(L32>=5,"عمل متوسط",IF(L32>=4,"عمل دون متوسط","عليك بالاجتهاد أكثر"))))))) -> عمل دون متوسط
D29: الفرض 2 | G29: =IF(N7="","",VLOOKUP(N5,base1,30,0)) -> 4 | L29: =IF(N7="","",VLOOKUP(N5,base1,30,0)) -> 4
A30: الإسلامية | D30: الفرض 3 | G30: =IF(N7="","",VLOOKUP(N5,base1,31,0)) -> 5 | L30: =IF(N7="","",VLOOKUP(N5,base1,31,0)) -> 5
D31: أنشطة | G31: =IF(N7="","",VLOOKUP(N5,base1,32,0)) -> 4 | L31: =IF(N7="","",VLOOKUP(N5,base1,32,0)) -> 4
D32: معدل الوحدة | L32: =IF(N7="","",VLOOKUP(N5,base1,33,0)) -> 4.5
A33: النشاط | D33: النشاط العلمي | G33: =IF(N7="","",VLOOKUP(N5,base1,34,0)) -> 6.5 | I33: =IF(N7="","",VLOOKUP(N5,base1,35,0)) -> 4 | L33: =IF(N7="","",VLOOKUP(N5,base1,36,0)) -> 5.25 | M33: =IF(L33="","",IF(L33>=9,"عمل ممتاز",IF(L33>=8,"نتائج حسنة",IF(L33>=7,"عمل مستحسن",IF(L33>=6,"نتائج لابأس بها",IF(L33>=5,"عمل متوسط",IF(L33>=4,"عمل دون متوسط","عليك بالاجتهاد أكثر"))))))) -> عمل متوسط
A34: العلمي | D34: معدل الوحدة
A35: التربية | D35: التربية الفنية | G35: =IF(N7="","",VLOOKUP(N5,base1,37,0)) -> 5 | I35: =IF(N7="","",VLOOKUP(N5,base1,38,0)) -> 7 | L35: =IF(N7="","",VLOOKUP(N5,base1,39,0)) -> 6 | M35: =IF(L35="","",IF(L35>=9,"عمل ممتاز",IF(L35>=8,"نتائج حسنة",IF(L35>=7,"عمل مستحسن",IF(L35>=6,"نتائج لابأس بها",IF(L35>=5,"عمل متوسط",IF(L35>=4,"عمل دون متوسط","عليك بالاجتهاد أكثر"))))))) -> نتائج لابأس بها
A36: الفنية | D36: معدل الوحدة
A37: الرياضيات | D37: الرياضيات | G37: =IF(N7="","",VLOOKUP(N5,base1,40,0)) -> 3 | I37: =IF(N7="","",VLOOKUP(N5,base1,41,0)) -> 3 | L37: =IF(N7="","",VLOOKUP(N5,base1,42,0)) -> 3 | M37: =IF(L37="","",IF(L37>=9,"عمل ممتاز",IF(L37>=8,"نتائج حسنة",IF(L37>=7,"عمل مستحسن",IF(L37>=6,"نتائج لابأس بها",IF(L37>=5,"عمل متوسط",IF(L37>=4,"عمل دون متوسط","عليك بالاجتهاد أكثر"))))))) -> عليك بالاجتهاد أكثر
D38: معدل الوحدة
A39: الفرنسية | D39: Comptine/chant | G39: =IF(N7="","",VLOOKUP(N5,base1,43,0)) -> 4 | I39: =IF(N7="","",VLOOKUP(N5,base1,44,0)) -> 3 | L39: =IF(N7="","",VLOOKUP(N5,base1,45,0)) -> 3.5
D40: Graphisme | G40: =IF(N7="","",VLOOKUP(N5,base1,46,0)) -> 7.5 | I40: =IF(N7="","",VLOOKUP(N5,base1,47,0)) -> 6 | L40: =IF(N7="","",VLOOKUP(N5,base1,48,0)) -> 6.75
D41: Act.orales | G41: =IF(N7="","",VLOOKUP(N5,base1,49,0)) -> 3 | I41: =IF(N7="","",VLOOKUP(N5,base1,50,0)) -> 4 | L41: =IF(N7="","",VLOOKUP(N5,base1,51,0)) -> 3.5
D42: Projet de classe | G42: =IF(N7="","",VLOOKUP(N5,base1,52,0)) -> 1 | I42: =IF(N7="","",VLOOKUP(N5,base1,53,0)) -> 1 | L42: =IF(N7="","",VLOOKUP(N5,base1,54,0)) -> 1
D43: معدل الوحدة | L43: =IF(N7="","",VLOOKUP(N5,base1,55,0)) -> 3.6875
A44: التربية | D44: التربية البدنية | G44: =IF(N7="","",VLOOKUP(N5,base1,56,0)) -> 7 | I44: =IF(N7="","",VLOOKUP(N5,base1,57,0)) -> 8 | L44: =IF(N7="","",VLOOKUP(N5,base1,58,0)) -> 7.5 | M44: =IF(L44="","",IF(L44>=9,"عمل ممتاز",IF(L44>=8,"نتائج حسنة",IF(L44>=7,"عمل مستحسن",IF(L44>=6,"نتائج لابأس بها",IF(L44>=5,"عمل متوسط",IF(L44>=4,"عمل دون متوسط","عليك بالاجتهاد أكثر"))))))) -> عمل مستحسن
A45: البدنية | D45: معدل الوحدة
A47: مجموع معدل الوحدات | E47: =IF(N7="","",VLOOKUP(N5,base1,61,0)) -> 35.58333333 | H47: الميزة | L47: خاتم و توقيع رئيس المؤسسة
A48: المعدل الدوري | E48: =IF(N7="","",VLOOKUP(N5,base1,62,0)) -> 5.083333333 | H48: =IF(N7="","",VLOOKUP(N5,base1,64,0)) -> متوسط
A49: الرتبة | E49: =IF(N7="","",VLOOKUP(N5,base1,63,0)) -> 23

Sheet T2
AL1: العــام الدراســي | AO1: =IF(TS!M1="","",TS!M1) -> 2020-2019
AL2: الأستاذ
C3: =IF(TS!A5="","",TS!A5) -> الأكاديمية الجهوية للتربية والتكوين | AL3: المستوى
C4: =IF(TS!A6="","",TS!A6) -> جهة: الدارالبيضاء-سطات | I4: مجمل نتائج الأسدوس الثاني | AL4: الوحدة المدرسية
C5: =IF(TS!A7="","",TS!A7) -> مديرية :المحمدية | AL5: الفوج
C6: =IF(TS!A8="","",TS!A8) -> مؤسسة :النجاح
G7: اللغة العربية | Y7: معدل | Z7: الأمازيغية | AB7: معدل | AC7: التربية الإسلامية | AG7: معدل | AH7: النشاط العلمي | AJ7: معدل | AK7: التربية الفنية | AM7: معدل | AN7: الرياضيات | AP7: معدل | AQ7: الفرنسية | BC7: المعدل | BD7: التربية البدنية | BF7: معدل | BG7: معامل ت ب | BH7: مج المعاملات | BI7: مج المعدلات | BJ7: معدل د2 | BK7: معدل 1 | BL7: معدل سنوي | BM7: الرتبة | BN7: القرار | BO7: الميزة | BP7: العتبة | BQ7: عدد الناجحين حسب العتبة | BT7: استثمار النتائج
A8: ر.ت | B8: رقم التلميذ | C8: الاسم و النسب | D8: تاريخ الإزدياد | E8: الجنس | F8: ر.التسجيل | G8: التعبير الكتابي | J8: القراءة | M8: الإملاء | P8: الخط | S8: الاستماع والتحدث | V8: النقل | AC8: فرض1 | AD8: فرض2 | AE8: فرض3 | AF8: أنشطة | AQ8: Comptine/chant | AS8: معدل | AT8: Graphisme | AV8: معدل | AW8: Activités orales | AY8: معدل | AZ8: Projet de classe | BB8: معدل
G9: ن1 | H9: ن2 | I9: معدل | J9: ن1 | K9: ن2 | L9: معدل | M9: ن1 | N9: ن2 | O9: معدل | P9: ن1 | Q9: ن2 | R9: معدل | S9: ن1 | T9: ن2 | U9: معدل | V9: ن1 | W9: ن2 | X9: معدل | Y9: الوحدة | Z9: ن1 | AA9: ن2 | AB9: الوحدة | AC9: ن1 | AD9: ن2 | AE9: ن3 | AF9: ن4 | AG9: الوحدة | AH9: ن1 | AI9: ن2 | AJ9: الوحدة | AK9: ن1 | AL9: ن2 | AM9: الوحدة | AN9: ن1 | AO9: ن2 | AP9: الوحدة | AQ9: ن1 | AR9: ن2 | AT9: ن1 | AU9: ن2 | AW9: ن1 | AX9: ن2 | AZ9: ن1 | BA9: ن2 | BC9: للوحدة | BD9: ن1 | BE9: ن2 | BF9: الوحدة | BQ9: إناث | BR9: ذكور | BS9: المجموع
A10: =IF(TS!A16="","",TS!A16) -> 1 | B10: =IF(TS!B16="","",TS!B16) -> AZ22334455 | C10: =IF(TS!C16="","",TS!C16) -> ياسين النسب1 | D10: =IF(TS!G16="","",TS!G16) -> 2010-07-20 | E10: =IF(TS!D16="","",TS!D16) -> ذ | F10: =IF(TS!F16="","",TS!F16) -> 1400 | G10: 6 | H10: 6 | I10: =IF(OR(G10="",H10=""),"",AVERAGE(G10:H10)) -> 6 | J10: 4 | K10: 5 | L10: =IF(OR(J10="",K10=""),"",AVERAGE(J10:K10)) -> 4.5 | M10: 3 | N10: 8 | O10: =IF(OR(M10="",N10=""),"",AVERAGE(M10:N10)) -> 5.5 | P10: 6 | Q10: 6.5 | R10: =IF(OR(P10="",Q10=""),"",AVERAGE(P10:Q10)) -> 6.25 | S10: 4 | T10: 5.5 | U10: =IF(OR(S10="",T10=""),"",AVERAGE(S10:T10)) -> 4.75 | V10: 6.75 | W10: 7 | X10: =IF(OR(V10="",W10=""),"",AVERAGE(V10:W10)) -> 6.875 | Y10: =IF(OR(I10="",L10="",O10="",R10="",U10="",X10=""),"",AVERAGE(I10,L10,O10,R10,U10,X10)) -> 5.645833333 | AB10: =IF(OR(Z10="",AA10=""),"",AVERAGE(Z10:AA10)) ->  | AC10: 5 | AD10: 4 | AE10: 5 | AF10: 4 | AG10: =IF(OR(AC10="",AD10="",AE10="",AF10=""),"",AVERAGE(AC10:AF10)) -> 4.5 | AH10: 6.5 | AI10: 4 | AJ10: =IF(OR(AH10="",AI10=""),"",AVERAGE(AH10:AI10)) -> 5.25 | AK10: 5 | AL10: 7 | AM10: =IF(OR(AK10="",AL10=""),"",AVERAGE(AK10:AL10)) -> 6 | AN10: 3 | AO10: 3 | AP10: =IF(OR(AN10="",AO10=""),"",AVERAGE(AN10:AO10)) -> 3 | AQ10: 4 | AR10: 3 | AS10: =IF(OR(AQ10="",AR10=""),"",AVERAGE(AQ10:AR10)) -> 3.5 | AT10: 7.5 | AU10: 6 | AV10: =IF(OR(AT10="",AU10=""),"",AVERAGE(AT10:AU10)) -> 6.75 | AW10: 3 | AX10: 4 | AY10: =IF(OR(AW10="",AX10=""),"",AVERAGE(AW10:AX10)) -> 3.5 | AZ10: 1 | BA10: 1 | BB10: =IF(OR(AZ10="",BA10=""),"",AVERAGE(AZ10:BA10)) -> 1 | BC10: =IF(OR(AS10="",AV10="",AY10="",BB10=""),"",AVERAGE(AS10,AV10,AY10,BB10)) -> 3.6875 | BD10: 7 | BE10: 8 | BF10: =IF(OR(BD10="",BE10=""),"",AVERAGE(BD10:BE10)) -> 7.5 | BG10: 1 | BH10: =6+BG10+TS!$P$3 -> 7 | BI10: =SUM(BF10,BC10,AP10,AM10,AJ10,AG10,AB10,Y10) -> 35.58333333 | BJ10: =IF(B10="","",BI10/BH10) -> 5.083333333 | BK10: =IF('T1'!BJ10="","",'T1'!BJ10) -> 5.083333333 | BL10: =AVERAGE(BJ10:BK10) -> 5.083333333 | BM10: =IF(BL10="","",RANK(BL10,$BL$10:$BL$69)) -> 23 | BN10: =IF(BL10<5,"يكرر","ينتقل") -> ينتقل | BO10: =IF(BJ10="","",IF(BJ10>=8,"تنويه",IF(BJ10>=7,"تشجيع",IF(BJ10>=6,"لوحة الشرف",IF(BJ10>=5,"متوسط",IF(BJ10>=3,"تنبيه","توبيخ")))))) -> متوسط | BP10: 5 | BT10: ] 3 - 0 ]
A11: =IF(TS!A17="","",TS!A17) -> 2 | B11: =IF(TS!B17="","",TS!B17) -> AZ22334456 | C11: =IF(TS!C17="","",TS!C17) -> ريان النسب2 | D11: =IF(TS!G17="","",TS!G17) -> 2012-07-04 | E11: =IF(TS!D17="","",TS!D17) -> ذ | F11: =IF(TS!F17="","",TS!F17) -> 1401 | G11: 5.5 | H11: 9 | I11: =IF(OR(G11="",H11=""),"",AVERAGE(G11:H11)) -> 7.25 | J11: 4.5 | K11: 6.5 | L11: =IF(OR(J11="",K11=""),"",AVERAGE(J11:K11)) -> 5.5 | M11: 1 | N11: 2.5 | O11: =IF(OR(M11="",N11=""),"",AVERAGE(M11:N11)) -> 1.75 | P11: 6 | Q11: 7 | R11: =IF(OR(P11="",Q11=""),"",AVERAGE(P11:Q11)) -> 6.5 | S11: 5.5 | T11: 6 | U11: =IF(OR(S11="",T11=""),"",AVERAGE(S11:T11)) -> 5.75 | V11: 5.5 | W11: 7.5 | X11: =IF(OR(V11="",W11=""),"",AVERAGE(V11:W11)) -> 6.5 | Y11: =IF(OR(I11="",L11="",O11="",R11="",U11="",X11=""),"",AVERAGE(I11,L11,O11,R11,U11,X11)) -> 5.541666667 | AC11: 7.75 | AD11: 8 | AE11: 5 | AF11: 6 | AG11: =IF(OR(AC11="",AD11="",AE11="",AF11=""),"",AVERAGE(AC11:AF11)) -> 6.6875 | AH11: 8 | AI11: 1.5 | AJ11: =IF(OR(AH11="",AI11=""),"",AVERAGE(AH11:AI11)) -> 4.75 | AK11: 6 | AL11: 6.75 | AM11: =IF(OR(AK11="",AL11=""),"",AVERAGE(AK11:AL11)) -> 6.375 | AN11: 5 | AO11: 4.75 | AP11: =IF(OR(AN11="",AO11=""),"",AVERAGE(AN11:AO11)) -> 4.875 | AQ11: 8.5 | AR11: 5 | AS11: =IF(OR(AQ11="",AR11=""),"",AVERAGE(AQ11:AR11)) -> 6.75 | AT11: 7 | AU11: 6 | AV11: =IF(OR(AT11="",AU11=""),"",AVERAGE(AT11:AU11)) -> 6.5 | AW11: 4 | AX11: 5 | AY11: =IF(OR(AW11="",AX11=""),"",AVERAGE(AW11:AX11)) -> 4.5 | AZ11: 1 | BA11: 8.5 | BB11: =IF(OR(AZ11="",BA11=""),"",AVERAGE(AZ11:BA11)) -> 4.75 | BC11: =IF(OR(AS11="",AV11="",AY11="",BB11=""),"",AVERAGE(AS11,AV11,AY11,BB11)) -> 5.625 | BD11: 7 | BE11: 7.5 | BF11: =IF(OR(BD11="",BE11=""),"",AVERAGE(BD11:BE11)) -> 7.25 | BG11: 1 | BH11: =6+BG11+TS!$P$3 -> 7 | BI11: =SUM(BF11,BC11,AP11,AM11,AJ11,AG11,AB11,Y11) -> 41.10416667 | BJ11: =IF(B11="","",BI11/BH11) -> 5.87202381 | BK11: =IF('T1'!BJ11="","",'T1'!BJ11) -> 5.87202381 | BL11: =AVERAGE(BJ11:BK11) -> 5.87202381 | BM11: =IF(BL11="","",RANK(BL11,$BL$10:$BL$69)) -> 20 | BN11: =IF(BL11<5,"يكرر","ينتقل") -> ينتقل | BO11: =IF(BJ11="","",IF(BJ11>=8,"تنويه",IF(BJ11>=7,"تشجيع",IF(BJ11>=6,"لوحة الشرف",IF(BJ11>=5,"متوسط",IF(BJ11>=3,"تنبيه","توبيخ")))))) -> متوسط | BQ11: نسبة النجاح | BT11: ] 4 - 3 ]
A12: =IF(TS!A18="","",TS!A18) -> 3 | B12: =IF(TS!B18="","",TS!B18) -> AZ22334457 | C12: =IF(TS!C18="","",TS!C18) -> يوسف النسب3 | D12: =IF(TS!G18="","",TS!G18) -> 2010-08-01 | E12: =IF(TS!D18="","",TS!D18) -> ذ | F12: =IF(TS!F18="","",TS!F18) -> 1402 | G12: 8 | H12: 10 | I12: 9 | J12: 8.5 | K12: 8.5 | L12: 8.5 | M12: 4 | N12: 9 | O12: 6.5 | P12: 9 | Q12: 9 | R12: 9 | S12: 7 | T12: 8.5 | U12: 7.75 | V12: 9 | W12: 9 | X12: 9 | Y12: 8.291666667 | AC12: 9 | AD12: 9 | AE12: 9 | AF12: 8 | AG12: 8.75 | AH12: 10 | AI12: 8.5 | AJ12: 9.25 | AK12: 6 | AL12: 8.5 | AM12: 7.25 | AN12: 9.5 | AO12: 9 | AP12: 9.25 | AQ12: 8.5 | AR12: 7 | AS12: 7.75 | AT12: 8.75 | AU12: 8.5 | AV12: 8.625 | AW12: 6.5 | AX12: 6 | AY12: 6.25 | AZ12: 3 | BA12: 9 | BB12: 6 | BC12: 7.15625 | BD12: 8.5 | BE12: 7.5 | BF12: 8 | BG12: 1 | BH12: =6+BG12+TS!$P$3 -> 7 | BI12: 57.94791667 | BJ12: 8.27827381 | BK12: =IF('T1'!BJ12="","",'T1'!BJ12) -> 8.27827381 | BL12: 8.27827381 | BM12: 1 | BN12: ينتقل | BO12: تنويه | BT12: ] 5 - 4 ]
A13: =IF(TS!A19="","",TS!A19) -> 4 | B13: =IF(TS!B19="","",TS!B19) -> AZ22334458 | C13: =IF(TS!C19="","",TS!C19) -> ايناس النسب4 | D13: =IF(TS!G19="","",TS!G19) -> 2012-12-02 | E13: =IF(TS!D19="","",TS!D19) -> أ | F13: =IF(TS!F19="","",TS!F19) -> 1403 | G13: 8 | H13: 9 | I13: 8.5 | J13: 8.75 | K13: 9 | L13: 8.875 | M13: 8.5 | N13: 9 | O13: 8.75 | P13: 9 | Q13: 9 | R13: 9 | S13: 7.5 | T13: 8.5 | U13: 8 | V13: 8.75 | W13: 9 | X13: 8.875 | Y13: 8.666666667 | AC13: 8 | AD13: 9 | AE13: 7 | AF13: 9 | AG13: 8.25 | AH13: 7 | AI13: 8 | AJ13: 7.5 | AK13: 5 | AL13: 8 | AM13: 6.5 | AN13: 7.5 | AO13: 7.25 | AP13: 7.375 | AQ13: 8 | AR13: 7 | AS13: 7.5 | AT13: 8.5 | AU13: 8.5 | AV13: 8.5 | AW13: 6 | AX13: 7 | AY13: 6.5 | AZ13: 7 | BA13: 9 | BB13: 8 | BC13: 7.625 | BD13: 8 | BE13: 8 | BF13: 8 | BG13: 1 | BH13: =6+BG13+TS!$P$3 -> 7 | BI13: 53.91666667 | BJ13: 7.702380952 | BK13: =IF('T1'!BJ13="","",'T1'!BJ13) -> 7.702380952 | BL13: 7.702380952 | BM13: 8 | BN13: ينتقل | BO13: تشجيع | BQ13: عدد الراسبين حسب العتبة | BT13: [5]
A14: =IF(TS!A20="","",TS!A20) -> 5 | B14: =IF(TS!B20="","",TS!B20) -> AZ22334459 | C14: =IF(TS!C20="","",TS!C20) -> طه النسب5 | D14: =IF(TS!G20="","",TS!G20) -> 2012-09-25 | E14: =IF(TS!D20="","",TS!D20) -> ذ | F14: =IF(TS!F20="","",TS!F20) -> 1404 | G14: 7 | H14: 9 | I14: 8 | J14: 7.5 | K14: 8.5 | L14: 8 | M14: 7 | N14: 5 | O14: 6 | P14: 7.5 | Q14: 7.5 | R14: 7.5 | S14: 6 | T14: 6.5 | U14: 6.25 | V14: 7 | W14: 7.5 | X14: 7.25 | Y14: 7.166666667 | AC14: 7.75 | AD14: 8 | AE14: 6.5 | AF14: 7 | AG14: 7.3125 | AH14: 9.75 | AI14: 8 | AJ14: 8.875 | AK14: 7.5 | AL14: 7.5 | AM14: 7.5 | AN14: 7.5 | AO14: 6 | AP14: 6.75 | AQ14: 8.5 | AR14: 6 | AS14: 7.25 | AT14: 8.5 | AU14: 6 | AV14: 7.25 | AW14: 5 | AX14: 5 | AY14: 5 | AZ14: 8 | BA14: 8 | BB14: 8 | BC14: 6.875 | BD14: 6.75 | BE14: 7.5 | BF14: 7.125 | BG14: 1 | BH14: =6+BG14+TS!$P$3 -> 7 | BI14: 51.60416667 | BJ14: 7.37202381 | BK14: =IF('T1'!BJ14="","",'T1'!BJ14) -> 7.37202381 | BL14: 7.37202381 | BM14: 10 | BN14: ينتقل | BO14: تشجيع | BT14: ] 6 - 5 [
A15: =IF(TS!A21="","",TS!A21) -> 6 | B15: =IF(TS!B21="","",TS!B21) -> AZ22334460 | C15: =IF(TS!C21="","",TS!C21) -> أمين النسب6 | D15: =IF(TS!G21="","",TS!G21) -> 2012-03-12 | E15: =IF(TS!D21="","",TS!D21) -> ذ | F15: =IF(TS!F21="","",TS!F21) -> 1405 | G15: 5.5 | H15: 7 | I15: 6.25 | J15: 4 | K15: 6.5 | L15: 5.25 | M15: 1 | N15: 7 | O15: 4 | P15: 4.5 | Q15: 6.5 | R15: 5.5 | S15: 4.5 | T15: 6 | U15: 5.25 | V15: 6 | W15: 7 | X15: 6.5 | Y15: 5.458333333 | AC15: 8 | AD15: 9 | AE15: 8 | AF15: 8 | AG15: 8.25 | AH15: 3 | AI15: 7 | AJ15: 5 | AK15: 4 | AL15: 8 | AM15: 6 | AN15: 4 | AO15: 5.75 | AP15: 4.875 | AQ15: 8.75 | AR15: 5 | AS15: 6.875 | AT15: 3 | AU15: 8 | AV15: 5.5 | AW15: 4.5 | AX15: 4 | AY15: 4.25 | AZ15: 6 | BA15: 1 | BB15: 3.5 | BC15: 5.03125 | BD15: 6 | BE15: 7 | BF15: 6.5 | BG15: 1 | BH15: =6+BG15+TS!$P$3 -> 7 | BI15: 41.11458333 | BJ15: 5.873511905 | BK15: =IF('T1'!BJ15="","",'T1'!BJ15) -> 5.873511905 | BL15: 5.873511905 | BM15: 19 | BN15: ينتقل | BO15: متوسط | BQ15: إناث | BR15: ذكور | BS15: المجموع | BT15: ] 7 - 6 ]
A16: =IF(TS!A22="","",TS!A22) -> 7 | B16: =IF(TS!B22="","",TS!B22) -> AZ22334461 | C16: =IF(TS!C22="","",TS!C22) -> ريان النسب7 | D16: =IF(TS!G22="","",TS!G22) -> 2012-10-01 | E16: =IF(TS!D22="","",TS!D22) -> ذ | F16: =IF(TS!F22="","",TS!F22) -> 1406 | G16: 2 | H16: 3 | I16: 2.5 | J16: 3.5 | K16: 3 | L16: 3.25 | M16: 1 | N16: 3 | O16: 2 | P16: 4 | Q16: 4 | R16: 4 | S16: 3.5 | T16: 3 | U16: 3.25 | V16: 1 | W16: 3 | X16: 2 | Y16: 2.833333333 | AC16: 2.5 | AD16: 5 | AE16: 3 | AF16: 4 | AG16: 3.625 | AH16: 1.5 | AI16: 3 | AJ16: 2.25 | AK16: 5 | AL16: 5 | AM16: 5 | AN16: 1 | AO16: 3 | AP16: 2 | AQ16: 2 | AR16: 4 | AS16: 3 | AT16: 6.75 | AU16: 5 | AV16: 5.875 | AW16: 3 | AX16: 3 | AY16: 3 | AZ16: 1 | BA16: 1 | BB16: 1 | BC16: 3.21875 | BD16: 6.5 | BE16: 7 | BF16: 6.75 | BG16: 1 | BH16: =6+BG16+TS!$P$3 -> 7 | BI16: 25.67708333 | BJ16: 3.668154762 | BK16: =IF('T1'!BJ16="","",'T1'!BJ16) -> 3.668154762 | BL16: 3.668154762 | BM16: 28 | BN16: يكرر | BO16: تنبيه | BT16: ] 8 - 7 ]
A17: =IF(TS!A23="","",TS!A23) -> 8 | B17: =IF(TS!B23="","",TS!B23) -> AZ22334462 | C17: =IF(TS!C23="","",TS!C23) -> نبيل النسب8 | D17: =IF(TS!G23="","",TS!G23) -> 2012-10-05 | E17: =IF(TS!D23="","",TS!D23) -> ذ | F17: =IF(TS!F23="","",TS!F23) -> 1407 | G17: 7 | H17: 10 | I17: 8.5 | J17: 7.5 | K17: 8.5 | L17: 8 | M17: 6.5 | N17: 10 | O17: 8.25 | P17: 8.75 | Q17: 9.5 | R17: 9.125 | S17: 6.75 | T17: 8.75 | U17: 7.75 | V17: 8.75 | W17: 9.5 | X17: 9.125 | Y17: 8.458333333 | AC17: 9 | AD17: 9 | AE17: 7 | AF17: 9 | AG17: 8.5 | AH17: 5.5 | AI17: 9.5 | AJ17: 7.5 | AK17: 6 | AL17: 8.75 | AM17: 7.375 | AN17: 10 | AO17: 6 | AP17: 8 | AQ17: 8.5 | AR17: 7 | AS17: 7.75 | AT17: 8.75 | AU17: 8.5 | AV17: 8.625 | AW17: 5 | AX17: 6 | AY17: 5.5 | AZ17: 7 | BA17: 9 | BB17: 8 | BC17: 7.46875 | BD17: 8 | BE17: 8 | BF17: 8 | BG17: 1 | BH17: =6+BG17+TS!$P$3 -> 7 | BI17: 55.30208333 | BJ17: 7.900297619 | BK17: =IF('T1'!BJ17="","",'T1'!BJ17) -> 7.900297619 | BL17: 7.900297619 | BM17: 4 | BN17: ينتقل | BO17: تشجيع | BQ17: نسبة الرسوب | BT17: ] 9 - 8 ]
A18: =IF(TS!A24="","",TS!A24) -> 9 | B18: =IF(TS!B24="","",TS!B24) -> AZ22334463 | C18: =IF(TS!C24="","",TS!C24) -> يحيى النسب9 | D18: =IF(TS!G24="","",TS!G24) -> 2012-07-06 | E18: =IF(TS!D24="","",TS!D24) -> ذ | F18: =IF(TS!F24="","",TS!F24) -> 1408 | G18: 7 | H18: 8 | I18: 7.5 | J18: 8.5 | K18: 9 | L18: 8.75 | M18: 4 | N18: 6 | O18: 5 | P18: 8 | Q18: 8.75 | R18: 8.375 | S18: 6.75 | T18: 7 | U18: 6.875 | V18: 8.5 | W18: 9 | X18: 8.75 | Y18: 7.541666667 | AC18: 7 | AD18: 7.5 | AE18: 6.5 | AF18: 7 | AG18: 7 | AH18: 7.5 | AI18: 3.75 | AJ18: 5.625 | AK18: 5 | AL18: 7 | AM18: 6 | AN18: 4.5 | AO18: 8 | AP18: 6.25 | AQ18: 8 | AR18: 6.5 | AS18: 7.25 | AT18: 8.5 | AU18: 6.5 | AV18: 7.5 | AW18: 4 | AX18: 6 | AY18: 5 | AZ18: 1 | BA18: 6 | BB18: 3.5 | BC18: 5.8125 | BD18: 7.5 | BE18: 7.5 | BF18: 7.5 | BG18: 1 | BH18: =6+BG18+TS!$P$3 -> 7 | BI18: 45.72916667 | BJ18: 6.532738095 | BK18: =IF('T1'!BJ18="","",'T1'!BJ18) -> 6.532738095 | BL18: 6.532738095 | BM18: 12 | BN18: ينتقل | BO18: لوحة الشرف | BT18: ] 10 - 9 ]
A19: =IF(TS!A25="","",TS!A25) -> 10 | B19: =IF(TS!B25="","",TS!B25) -> AZ22334464 | C19: =IF(TS!C25="","",TS!C25) -> كريم النسب10 | D19: =IF(TS!G25="","",TS!G25) -> 2012-10-30 | E19: =IF(TS!D25="","",TS!D25) -> أ | F19: =IF(TS!F25="","",TS!F25) -> 1409 | G19: 7.5 | H19: 7 | I19: 7.25 | J19: 8.5 | K19: 8.75 | L19: 8.625 | M19: 6.75 | N19: 8.75 | O19: 7.75 | P19: 7 | Q19: 8.75 | R19: 7.875 | S19: 5.75 | T19: 7.5 | U19: 6.625 | V19: 7.75 | W19: 8.5 | X19: 8.125 | Y19: 7.708333333 | AC19: 8 | AD19: 8 | AE19: 8 | AF19: 7.5 | AG19: 7.875 | AH19: 6.75 | AI19: 8.5 | AJ19: 7.625 | AK19: 6 | AL19: 7 | AM19: 6.5 | AN19: 7.5 | AO19: 8.5 | AP19: 8 | AQ19: 7.75 | AR19: 6 | AS19: 6.875 | AT19: 8 | AU19: 6.5 | AV19: 7.25 | AW19: 4 | AX19: 6 | AY19: 5 | AZ19: 7 | BA19: 7 | BB19: 7 | BC19: 6.53125 | BD19: 8 | BE19: 7.5 | BF19: 7.75 | BG19: 1 | BH19: =6+BG19+TS!$P$3 -> 7 | BI19: 51.98958333 | BJ19: 7.427083333 | BK19: =IF('T1'!BJ19="","",'T1'!BJ19) -> 7.427083333 | BL19: 7.427083333 | BM19: 9 | BN19: ينتقل | BO19: تشجيع | BQ19: المجموع | BT19: [10]
A20: =IF(TS!A26="","",TS!A26) -> 11 | B20: =IF(TS!B26="","",TS!B26) -> AZ22334465 | C20: =IF(TS!C26="","",TS!C26) -> محمد ياسين النسب11 | D20: =IF(TS!G26="","",TS!G26) -> 2013-03-23 | E20: =IF(TS!D26="","",TS!D26) -> ذ | F20: =IF(TS!F26="","",TS!F26) -> 1410 | G20: 8 | H20: 10 | I20: 9 | J20: 8.75 | K20: 9 | L20: 8.875 | M20: 9 | N20: 9 | O20: 9 | P20: 9 | Q20: 9 | R20: 9 | S20: 7.5 | T20: 9 | U20: 8.25 | V20: 9 | W20: 9 | X20: 9 | Y20: 8.854166667 | AC20: 8 | AD20: 9 | AE20: 7 | AF20: 8.5 | AG20: 8.125 | AH20: 8 | AI20: 9 | AJ20: 8.5 | AK20: 7 | AL20: 8 | AM20: 7.5 | AN20: 7.5 | AO20: 8.25 | AP20: 7.875 | AQ20: 8.5 | AR20: 7 | AS20: 7.75 | AT20: 8.75 | AU20: 8.5 | AV20: 8.625 | AW20: 5 | AX20: 6 | AY20: 5.5 | AZ20: 6 | BA20: 7 | BB20: 6.5 | BC20: 7.09375 | BD20: 8.5 | BE20: 8 | BF20: 8.25 | BG20: 1 | BH20: =6+BG20+TS!$P$3 -> 7 | BI20: 56.19791667 | BJ20: 8.02827381 | BK20: =IF('T1'!BJ20="","",'T1'!BJ20) -> 8.02827381 | BL20: 8.02827381 | BM20: 3 | BN20: ينتقل | BO20: تنويه
A21: =IF(TS!A27="","",TS!A27) -> 12 | B21: =IF(TS!B27="","",TS!B27) -> AZ22334466 | C21: =IF(TS!C27="","",TS!C27) -> دعاء النسب12 | D21: =IF(TS!G27="","",TS!G27) -> 2013-03-16 | E21: =IF(TS!D27="","",TS!D27) -> أ | F21: =IF(TS!F27="","",TS!F27) -> 1411 | G21: 4 | H21: 2 | I21: 3 | J21: 3 | K21: 4 | L21: 3.5 | M21: 1 | N21: 1 | O21: 1 | P21: 5 | Q21: 6 | R21: 5.5 | S21: 4 | T21: 5.75 | U21: 4.875 | V21: 4 | W21: 6 | X21: 5 | Y21: 3.8125 | AC21: 7.5 | AD21: 7 | AE21: 5.5 | AF21: 6 | AG21: 6.5 | AH21: 4 | AI21: 2.75 | AJ21: 3.375 | AK21: 5 | AL21: 6.75 | AM21: 5.875 | AN21: 1.5 | AO21: 1.25 | AP21: 1.375 | AQ21: 7 | AR21: 5.5 | AS21: 6.25 | AT21: 6.5 | AU21: 6 | AV21: 6.25 | AW21: 3 | AX21: 4 | AY21: 3.5 | AZ21: 1 | BA21: 8 | BB21: 4.5 | BC21: 5.125 | BD21: 7 | BE21: 7 | BF21: 7 | BG21: 1 | BH21: =6+BG21+TS!$P$3 -> 7 | BI21: 33.0625 | BJ21: 4.723214286 | BK21: =IF('T1'!BJ21="","",'T1'!BJ21) -> 4.723214286 | BL21: 4.723214286 | BM21: 25 | BN21: يكرر | BO21: تنبيه | BT21: المجموع
A22: =IF(TS!A28="","",TS!A28) -> 13 | B22: =IF(TS!B28="","",TS!B28) -> AZ22334467 | C22: =IF(TS!C28="","",TS!C28) -> مريم النسب13 | D22: =IF(TS!G28="","",TS!G28) -> 2012-09-29 | E22: =IF(TS!D28="","",TS!D28) -> أ | F22: =IF(TS!F28="","",TS!F28) -> 1412 | G22: 4 | H22: 1 | I22: 2.5 | J22: 3 | K22: 4.5 | L22: 3.75 | M22: 1 | N22: 1 | O22: 1 | P22: 5 | Q22: 6 | R22: 5.5 | S22: 4.5 | T22: 5 | U22: 4.75 | V22: 4 | W22: 6 | X22: 5 | Y22: 3.75 | AC22: 5.5 | AD22: 8 | AE22: 8 | AF22: 7 | AG22: 7.125 | AH22: 4 | AI22: 3 | AJ22: 3.5 | AK22: 5 | AL22: 6.75 | AM22: 5.875 | AN22: 3.5 | AO22: 3.75 | AP22: 3.625 | AQ22: 7.5 | AR22: 4 | AS22: 5.75 | AT22: 7 | AU22: 6 | AV22: 6.5 | AW22: 3.5 | AX22: 4 | AY22: 3.75 | AZ22: 1 | BA22: 1 | BB22: 1 | BC22: 4.25 | BD22: 7 | BE22: 7 | BF22: 7 | BG22: 1 | BH22: =6+BG22+TS!$P$3 -> 7 | BI22: 35.125 | BJ22: 5.017857143 | BK22: =IF('T1'!BJ22="","",'T1'!BJ22) -> 5.017857143 | BL22: 5.017857143 | BM22: 24 | BN22: ينتقل | BO22: متوسط
A23: =IF(TS!A29="","",TS!A29) -> 14 | B23: =IF(TS!B29="","",TS!B29) -> AZ22334468 | C23: =IF(TS!C29="","",TS!C29) -> زكريا النسب14 | D23: =IF(TS!G29="","",TS!G29) -> 2013-02-01 | E23: =IF(TS!D29="","",TS!D29) -> ذ | F23: =IF(TS!F29="","",TS!F29) -> 1413 | G23: 8 | H23: 10 | I23: 9 | J23: 8.75 | K23: 8.75 | L23: 8.75 | M23: 6.5 | N23: 9.5 | O23: 8 | P23: 7.75 | Q23: 7 | R23: 7.375 | S23: 7 | T23: 8.75 | U23: 7.875 | V23: 8 | W23: 8.5 | X23: 8.25 | Y23: 8.208333333 | AC23: 9 | AD23: 9 | AE23: 8 | AF23: 9 | AG23: 8.75 | AH23: 9.5 | AI23: 6.5 | AJ23: 8 | AK23: 6 | AL23: 8.5 | AM23: 7.25 | AN23: 7 | AO23: 7 | AP23: 7 | AQ23: 6.5 | AR23: 8.5 | AS23: 7.5 | AT23: 8.5 | AU23: 7 | AV23: 7.75 | AW23: 6.5 | AX23: 7 | AY23: 6.75 | AZ23: 1 | BA23: 8 | BB23: 4.5 | BC23: 6.625 | BD23: 8.5 | BE23: 8 | BF23: 8.25 | BG23: 1 | BH23: =6+BG23+TS!$P$3 -> 7 | BI23: 54.08333333 | BJ23: 7.726190476 | BK23: =IF('T1'!BJ23="","",'T1'!BJ23) -> 7.726190476 | BL23: 7.726190476 | BM23: 6 | BN23: ينتقل | BO23: تشجيع
A24: =IF(TS!A30="","",TS!A30) -> 15 | B24: =IF(TS!B30="","",TS!B30) -> AZ22334469 | C24: =IF(TS!C30="","",TS!C30) -> عبد المطلب النسب15 | D24: =IF(TS!G30="","",TS!G30) -> 2012-05-23 | E24: =IF(TS!D30="","",TS!D30) -> ذ | F24: =IF(TS!F30="","",TS!F30) -> 1414 | G24: 6 | H24: 8 | I24: 7 | J24: 4 | K24: 8 | L24: 6 | M24: 1 | N24: 6.5 | O24: 3.75 | P24: 6 | Q24: 6.5 | R24: 6.25 | S24: 4.5 | T24: 6.75 | U24: 5.625 | V24: 6 | W24: 7 | X24: 6.5 | Y24: 5.854166667 | AC24: 8.5 | AD24: 7 | AE24: 7.5 | AF24: 7 | AG24: 7.5 | AH24: 3 | AI24: 6.5 | AJ24: 4.75 | AK24: 5 | AL24: 7 | AM24: 6 | AN24: 7.5 | AO24: 6.75 | AP24: 7.125 | AQ24: 8.75 | AR24: 7 | AS24: 7.875 | AT24: 6.5 | AU24: 6.75 | AV24: 6.625 | AW24: 4.5 | AX24: 6 | AY24: 5.25 | AZ24: 1 | BA24: 8 | BB24: 4.5 | BC24: 6.0625 | BD24: 7 | BE24: 7.5 | BF24: 7.25 | BG24: 1 | BH24: =6+BG24+TS!$P$3 -> 7 | BI24: 44.54166667 | BJ24: 6.363095238 | BK24: =IF('T1'!BJ24="","",'T1'!BJ24) -> 6.363095238 | BL24: 6.363095238 | BM24: 14 | BN24: ينتقل | BO24: لوحة الشرف
A25: =IF(TS!A31="","",TS!A31) -> 16 | B25: =IF(TS!B31="","",TS!B31) -> AZ22334470 | C25: =IF(TS!C31="","",TS!C31) -> حمدي النسب16 | D25: =IF(TS!G31="","",TS!G31) -> 2012-10-15 | E25: =IF(TS!D31="","",TS!D31) -> ذ | F25: =IF(TS!F31="","",TS!F31) -> 1415 | G25: 4 | H25: 1 | I25: 2.5 | J25: 5 | K25: 6.5 | L25: 5.75 | M25: 4 | N25: 2 | O25: 3 | P25: 4 | Q25: 4 | R25: 4 | S25: 4 | T25: 5.5 | U25: 4.75 | V25: 5 | W25: 4 | X25: 4.5 | Y25: 4.083333333 | AC25: 6 | AD25: 7 | AE25: 2 | AF25: 4 | AG25: 4.75 | AH25: 3 | AI25: 4 | AJ25: 3.5 | AK25: 5 | AL25: 5 | AM25: 5 | AN25: 1 | AO25: 2.75 | AP25: 1.875 | AQ25: 4 | AR25: 6.5 | AS25: 5.25 | AT25: 5.5 | AU25: 6 | AV25: 5.75 | AW25: 3 | AX25: 5 | AY25: 4 | AZ25: 1 | BA25: 8 | BB25: 4.5 | BC25: 4.875 | BD25: 6.5 | BE25: 6.5 | BF25: 6.5 | BG25: 1 | BH25: =6+BG25+TS!$P$3 -> 7 | BI25: 30.58333333 | BJ25: 4.369047619 | BK25: =IF('T1'!BJ25="","",'T1'!BJ25) -> 4.369047619 | BL25: 4.369047619 | BM25: 26 | BN25: يكرر | BO25: تنبيه
A26: =IF(TS!A32="","",TS!A32) -> 17 | B26: =IF(TS!B32="","",TS!B32) -> AZ22334471 | C26: =IF(TS!C32="","",TS!C32) -> اسماعيل النسب17 | D26: =IF(TS!G32="","",TS!G32) -> 2012-11-25 | E26: =IF(TS!D32="","",TS!D32) -> ذ | F26: =IF(TS!F32="","",TS!F32) -> 1416 | G26: 4 | H26: 1 | I26: 2.5 | J26: 3 | K26: 4 | L26: 3.5 | M26: 1 | N26: 2.5 | O26: 1.75 | P26: 1 | Q26: 5.75 | R26: 3.375 | S26: 3 | T26: 5 | U26: 4 | V26: 1 | W26: 5.5 | X26: 3.25 | Y26: 3.0625 | AC26: 3.75 | AD26: 6 | AE26: 3.5 | AF26: 5 | AG26: 4.5625 | AH26: 6 | AI26: 1 | AJ26: 3.5 | AK26: 6 | AL26: 6.5 | AM26: 6.25 | AN26: 1.5 | AO26: 2 | AP26: 1.75 | AQ26: 5.5 | AR26: 4 | AS26: 4.75 | AT26: 4 | AU26: 6 | AV26: 5 | AW26: 3 | AX26: 4 | AY26: 3.5 | AZ26: 1 | BA26: 8 | BB26: 4.5 | BC26: 4.4375 | BD26: 6.5 | BE26: 6.5 | BF26: 6.5 | BG26: 1 | BH26: =6+BG26+TS!$P$3 -> 7 | BI26: 30.0625 | BJ26: 4.294642857 | BK26: =IF('T1'!BJ26="","",'T1'!BJ26) -> 4.294642857 | BL26: 4.294642857 | BM26: 27 | BN26: يكرر | BO26: تنبيه
A27: =IF(TS!A33="","",TS!A33) -> 18 | B27: =IF(TS!B33="","",TS!B33) -> AZ22334472 | C27: =IF(TS!C33="","",TS!C33) -> آدم النسب18 | D27: =IF(TS!G33="","",TS!G33) -> 2012-05-25 | E27: =IF(TS!D33="","",TS!D33) -> ذ | F27: =IF(TS!F33="","",TS!F33) -> 1417 | G27: 6.5 | H27: 9 | I27: 7.75 | J27: 7 | K27: 8.75 | L27: 7.875 | M27: 7 | N27: 6.5 | O27: 6.75 | P27: 6.75 | Q27: 6.75 | R27: 6.75 | S27: 6.5 | T27: 6.75 | U27: 6.625 | V27: 6.5 | W27: 6.75 | X27: 6.625 | Y27: 7.0625 | AC27: 8.25 | AD27: 7 | AE27: 7.25 | AF27: 6.5 | AG27: 7.25 | AH27: 5.25 | AI27: 7 | AJ27: 6.125 | AK27: 6 | AL27: 7 | AM27: 6.5 | AN27: 3.75 | AO27: 4.5 | AP27: 4.125 | AQ27: 8 | AR27: 6 | AS27: 7 | AT27: 6.75 | AU27: 6.5 | AV27: 6.625 | AW27: 4 | AX27: 5 | AY27: 4.5 | AZ27: 7 | BA27: 9 | BB27: 8 | BC27: 6.53125 | BD27: 7 | BE27: 7 | BF27: 7 | BG27: 1 | BH27: =6+BG27+TS!$P$3 -> 7 | BI27: 44.59375 | BJ27: 6.370535714 | BK27: =IF('T1'!BJ27="","",'T1'!BJ27) -> 6.370535714 | BL27: 6.370535714 | BM27: 13 | BN27: ينتقل | BO27: لوحة الشرف
A28: =IF(TS!A34="","",TS!A34) -> 19 | B28: =IF(TS!B34="","",TS!B34) -> AZ22334473 | C28: =IF(TS!C34="","",TS!C34) -> مريم النسب19 | D28: =IF(TS!G34="","",TS!G34) -> 2012-11-10 | E28: =IF(TS!D34="","",TS!D34) -> أ | F28: =IF(TS!F34="","",TS!F34) -> 1418 | G28: 7.5 | H28: 9 | I28: 8.25 | J28: 8.75 | K28: 8.75 | L28: 8.75 | M28: 9 | N28: 8.75 | O28: 8.875 | P28: 8.75 | Q28: 9 | R28: 8.875 | S28: 7 | T28: 8.75 | U28: 7.875 | V28: 8.5 | W28: 9 | X28: 8.75 | Y28: 8.5625 | AC28: 9 | AD28: 9 | AE28: 9 | AF28: 9 | AG28: 9 | AH28: 5.5 | AI28: 7.5 | AJ28: 6.5 | AK28: 6 | AL28: 8.25 | AM28: 7.125 | AN28: 9 | AO28: 8 | AP28: 8.5 | AQ28: 8.5 | AR28: 7 | AS28: 7.75 | AT28: 8.5 | AU28: 7.5 | AV28: 8 | AW28: 6 | AX28: 6.5 | AY28: 6.25 | AZ28: 4 | BA28: 8 | BB28: 6 | BC28: 7 | BD28: 8 | BE28: 8 | BF28: 8 | BG28: 1 | BH28: =6+BG28+TS!$P$3 -> 7 | BI28: 54.6875 | BJ28: 7.8125 | BK28: =IF('T1'!BJ28="","",'T1'!BJ28) -> 7.8125 | BL28: 7.8125 | BM28: 5 | BN28: ينتقل | BO28: تشجيع
A29: =IF(TS!A35="","",TS!A35) -> 20 | B29: =IF(TS!B35="","",TS!B35) -> AZ22334474 | C29: =IF(TS!C35="","",TS!C35) -> راضية النسب20 | D29: =IF(TS!G35="","",TS!G35) -> 2012-05-06 | E29: =IF(TS!D35="","",TS!D35) -> أ | F29: =IF(TS!F35="","",TS!F35) -> 1419 | G29: 1 | H29: 1 | I29: 1 | J29: 1 | K29: 1 | L29: 1 | M29: 1 | N29: 1 | O29: 1 | P29: 1 | Q29: 1 | R29: 1 | S29: 1 | T29: 1 | U29: 1 | V29: 1 | W29: 1 | X29: 1 | Y29: 1 | AC29: 1.5 | AD29: 1 | AE29: 4 | AF29: 2 | AG29: 2.125 | AH29: 1.5 | AI29: 1 | AJ29: 1.25 | AK29: 5 | AL29: 4 | AM29: 4.5 | AN29: 1 | AO29: 1 | AP29: 1 | AQ29: 3 | AR29: 1 | AS29: 2 | AT29: 1 | AU29: 4 | AV29: 2.5 | AW29: 1 | AX29: 1 | AY29: 1 | AZ29: 1 | BA29: 1 | BB29: 1 | BC29: 1.625 | BD29: 6 | BE29: 7 | BF29: 6.5 | BG29: 1 | BH29: =6+BG29+TS!$P$3 -> 7 | BI29: 18 | BJ29: 2.571428571 | BK29: =IF('T1'!BJ29="","",'T1'!BJ29) -> 2.571428571 | BL29: 2.571428571 | BM29: 29 | BN29: يكرر | BO29: توبيخ
A30: =IF(TS!A36="","",TS!A36) -> 21 | B30: =IF(TS!B36="","",TS!B36) -> AZ22334475 | C30: =IF(TS!C36="","",TS!C36) -> ريان النسب21 | D30: =IF(TS!G36="","",TS!G36) -> 2012-09-07 | E30: =IF(TS!D36="","",TS!D36) -> ذ | F30: =IF(TS!F36="","",TS!F36) -> 1420 | G30: 7 | H30: 9 | I30: 8 | J30: 7.75 | K30: 8.5 | L30: 8.125 | M30: 4.5 | N30: 6 | O30: 5.25 | P30: 8 | Q30: 6.5 | R30: 7.25 | S30: 6 | T30: 7 | U30: 6.5 | V30: 8.5 | W30: 7 | X30: 7.75 | Y30: 7.145833333 | AC30: 8.5 | AD30: 9 | AE30: 7.5 | AF30: 8 | AG30: 8.25 | AH30: 8 | AI30: 6.25 | AJ30: 7.125 | AK30: 7 | AL30: 8 | AM30: 7.5 | AN30: 5 | AO30: 8 | AP30: 6.5 | AQ30: 8.75 | AR30: 6 | AS30: 7.375 | AT30: 8.5 | AU30: 6.75 | AV30: 7.625 | AW30: 6 | AX30: 5 | AY30: 5.5 | AZ30: 8 | BA30: 9 | BB30: 8.5 | BC30: 7.25 | BD30: 7.5 | BE30: 7.5 | BF30: 7.5 | BG30: 1 | BH30: =6+BG30+TS!$P$3 -> 7 | BI30: 51.27083333 | BJ30: 7.324404762 | BK30: =IF('T1'!BJ30="","",'T1'!BJ30) -> 7.324404762 | BL30: 7.324404762 | BM30: 11 | BN30: ينتقل | BO30: تشجيع
A31: =IF(TS!A37="","",TS!A37) -> 22 | B31: =IF(TS!B37="","",TS!B37) -> AZ22334476 | C31: =IF(TS!C37="","",TS!C37) -> أيمن النسب22 | D31: =IF(TS!G37="","",TS!G37) -> 2013-02-26 | E31: =IF(TS!D37="","",TS!D37) -> ذ | F31: =IF(TS!F37="","",TS!F37) -> 1421 | G31: 6 | H31: 7 | I31: 6.5 | J31: 5.5 | K31: 7 | L31: 6.25 | M31: 1 | N31: 2.5 | O31: 1.75 | P31: 6.5 | Q31: 8 | R31: 7.25 | S31: 6 | T31: 6 | U31: 6 | V31: 6 | W31: 9 | X31: 7.5 | Y31: 5.875 | AC31: 8 | AD31: 7 | AE31: 7.5 | AF31: 6.5 | AG31: 7.25 | AH31: 4 | AI31: 2.75 | AJ31: 3.375 | AK31: 5 | AL31: 7.5 | AM31: 6.25 | AN31: 4 | AO31: 6.25 | AP31: 5.125 | AQ31: 8.5 | AR31: 4 | AS31: 6.25 | AT31: 7 | AU31: 6 | AV31: 6.5 | AW31: 5.5 | AX31: 4 | AY31: 4.75 | AZ31: 8 | BA31: 1 | BB31: 4.5 | BC31: 5.5 | BD31: 7 | BE31: 7 | BF31: 7 | BG31: 1 | BH31: =6+BG31+TS!$P$3 -> 7 | BI31: 40.375 | BJ31: 5.767857143 | BK31: =IF('T1'!BJ31="","",'T1'!BJ31) -> 5.767857143 | BL31: 5.767857143 | BM31: 21 | BN31: ينتقل | BO31: متوسط
A32: =IF(TS!A38="","",TS!A38) -> 23 | B32: =IF(TS!B38="","",TS!B38) -> AZ22334477 | C32: =IF(TS!C38="","",TS!C38) -> ملاك النسب23 | D32: =IF(TS!G38="","",TS!G38) -> 2013-03-21 | E32: =IF(TS!D38="","",TS!D38) -> أ | F32: =IF(TS!F38="","",TS!F38) -> 1422 | G32: 6 | H32: 4 | I32: 5 | J32: 3 | K32: 4 | L32: 3.5 | M32: 1 | N32: 6.5 | O32: 3.75 | P32: 6.5 | Q32: 6 | R32: 6.25 | S32: 3 | T32: 6 | U32: 4.5 | V32: 7.5 | W32: 7.5 | X32: 7.5 | Y32: 5.083333333 | AC32: 8 | AD32: 8 | AE32: 4.5 | AF32: 6 | AG32: 6.625 | AH32: 5 | AI32: 4.5 | AJ32: 4.75 | AK32: 5 | AL32: 7 | AM32: 6 | AN32: 4.5 | AO32: 3.5 | AP32: 4 | AQ32: 8.5 | AR32: 5 | AS32: 6.75 | AT32: 8.5 | AU32: 8.5 | AV32: 8.5 | AW32: 4 | AX32: 4.5 | AY32: 4.25 | AZ32: 8 | BA32: 7 | BB32: 7.5 | BC32: 6.75 | BD32: 7 | BE32: 7 | BF32: 7 | BG32: 1 | BH32: =6+BG32+TS!$P$3 -> 7 | BI32: 40.20833333 | BJ32: 5.744047619 | BK32: =IF('T1'!BJ32="","",'T1'!BJ32) -> 5.744047619 | BL32: 5.744047619 | BM32: 22 | BN32: ينتقل | BO32: متوسط
A33: =IF(TS!A39="","",TS!A39) -> 24 | B33: =IF(TS!B39="","",TS!B39) -> AZ22334478 | C33: =IF(TS!C39="","",TS!C39) -> مريم النسب24 | D33: =IF(TS!G39="","",TS!G39) -> 2013-02-25 | E33: =IF(TS!D39="","",TS!D39) -> أ | F33: =IF(TS!F39="","",TS!F39) -> 1423 | G33: 7.5 | H33: 9 | I33: 8.25 | J33: 7 | K33: 8.5 | L33: 7.75 | M33: 4.5 | N33: 5 | O33: 4.75 | P33: 6 | Q33: 6.5 | R33: 6.25 | S33: 6 | T33: 8.75 | U33: 7.375 | V33: 6 | W33: 6.5 | X33: 6.25 | Y33: 6.770833333 | AC33: 8 | AD33: 9 | AE33: 10 | AF33: 9 | AG33: 9 | AH33: 7 | AI33: 9 | AJ33: 8 | AK33: 5 | AL33: 8 | AM33: 6.5 | AN33: 10 | AO33: 8.5 | AP33: 9.25 | AQ33: 8.5 | AR33: 5.5 | AS33: 7 | AT33: 6 | AU33: 7.5 | AV33: 6.75 | AW33: 6 | AX33: 5 | AY33: 5.5 | AZ33: 8 | BA33: 9 | BB33: 8.5 | BC33: 6.9375 | BD33: 7 | BE33: 8 | BF33: 7.5 | BG33: 1 | BH33: =6+BG33+TS!$P$3 -> 7 | BI33: 53.95833333 | BJ33: 7.708333333 | BK33: =IF('T1'!BJ33="","",'T1'!BJ33) -> 7.708333333 | BL33: 7.708333333 | BM33: 7 | BN33: ينتقل | BO33: تشجيع
A34: =IF(TS!A40="","",TS!A40) -> 25 | B34: =IF(TS!B40="","",TS!B40) -> AZ22334479 | C34: =IF(TS!C40="","",TS!C40) -> أمينة النسب25 | D34: =IF(TS!G40="","",TS!G40) -> 2013-03-27 | E34: =IF(TS!D40="","",TS!D40) -> أ | F34: =IF(TS!F40="","",TS!F40) -> 1424 | G34: 6 | H34: 9 | I34: 7.5 | J34: 4 | K34: 7 | L34: 5.5 | M34: 1 | N34: 3.5 | O34: 2.25 | P34: 6 | Q34: 8.5 | R34: 7.25 | S34: 5 | T34: 6.75 | U34: 5.875 | V34: 5.5 | W34: 9 | X34: 7.25 | Y34: 5.9375 | AC34: 8 | AD34: 7 | AE34: 6 | AF34: 7 | AG34: 7 | AH34: 6 | AI34: 4.5 | AJ34: 5.25 | AK34: 6 | AL34: 7.5 | AM34: 6.75 | AN34: 4 | AO34: 5 | AP34: 4.5 | AQ34: 8.5 | AR34: 8 | AS34: 8.25 | AT34: 7 | AU34: 6.5 | AV34: 6.75 | AW34: 4.5 | AX34: 4.5 | AY34: 4.5 | AZ34: 7 | BA34: 8 | BB34: 7.5 | BC34: 6.75 | BD34: 6.5 | BE34: 7.5 | BF34: 7 | BG34: 1 | BH34: =6+BG34+TS!$P$3 -> 7 | BI34: 43.1875 | BJ34: 6.169642857 | BK34: =IF('T1'!BJ34="","",'T1'!BJ34) -> 6.169642857 | BL34: 6.169642857 | BM34: 17 | BN34: ينتقل | BO34: لوحة الشرف
A35: =IF(TS!A41="","",TS!A41) -> 26 | B35: =IF(TS!B41="","",TS!B41) -> AZ22334480 | C35: =IF(TS!C41="","",TS!C41) -> اكرام النسب26 | D35: =IF(TS!G41="","",TS!G41) -> 2012-07-04 | E35: =IF(TS!D41="","",TS!D41) -> أ | F35: =IF(TS!F41="","",TS!F41) -> 1425 | G35: 5.5 | H35: 4 | I35: 4.75 | J35: 3 | K35: 5 | L35: 4 | M35: 1 | N35: 6 | O35: 3.5 | P35: 6.25 | Q35: 6.5 | R35: 6.375 | S35: 3.5 | T35: 6 | U35: 4.75 | V35: 6.5 | W35: 6 | X35: 6.25 | Y35: 4.9375 | AC35: 7 | AD35: 8 | AE35: 7 | AF35: 7 | AG35: 7.25 | AH35: 6 | AI35: 3.5 | AJ35: 4.75 | AK35: 6 | AL35: 7 | AM35: 6.5 | AN35: 6 | AO35: 5.25 | AP35: 5.625 | AQ35: 3 | AR35: 4 | AS35: 3.5 | AT35: 8 | AU35: 7 | AV35: 7.5 | AW35: 4 | AX35: 4 | AY35: 4 | AZ35: 1 | BA35: 8 | BB35: 4.5 | BC35: 4.875 | BD35: 7 | BE35: 7.5 | BF35: 7.25 | BG35: 1 | BH35: =6+BG35+TS!$P$3 -> 7 | BI35: 41.1875 | BJ35: 5.883928571 | BK35: =IF('T1'!BJ35="","",'T1'!BJ35) -> 5.883928571 | BL35: 5.883928571 | BM35: 18 | BN35: ينتقل | BO35: متوسط
A36: =IF(TS!A42="","",TS!A42) -> 27 | B36: =IF(TS!B42="","",TS!B42) -> AZ22334481 | C36: =IF(TS!C42="","",TS!C42) -> آية النسب27 | D36: =IF(TS!G42="","",TS!G42) -> 2012-05-15 | E36: =IF(TS!D42="","",TS!D42) -> أ | F36: =IF(TS!F42="","",TS!F42) -> 1426 | G36: 5 | H36: 6 | I36: 5.5 | J36: 3 | K36: 7.5 | L36: 5.25 | M36: 3 | N36: 2.5 | O36: 2.75 | P36: 5 | Q36: 6.5 | R36: 5.75 | S36: 4.5 | T36: 6 | U36: 5.25 | V36: 5 | W36: 6.5 | X36: 5.75 | Y36: 5.041666667 | AC36: 7 | AD36: 8 | AE36: 5.5 | AF36: 6.5 | AG36: 6.75 | AH36: 7 | AI36: 3 | AJ36: 5 | AK36: 7.5 | AL36: 7.5 | AM36: 7.5 | AN36: 6 | AO36: 7 | AP36: 6.5 | AQ36: 5.5 | AR36: 6.5 | AS36: 6 | AT36: 7.5 | AU36: 7 | AV36: 7.25 | AW36: 4.5 | AX36: 5 | AY36: 4.75 | AZ36: 8 | BA36: 7.5 | BB36: 7.75 | BC36: 6.4375 | BD36: 6.5 | BE36: 7 | BF36: 6.75 | BG36: 1 | BH36: =6+BG36+TS!$P$3 -> 7 | BI36: 43.97916667 | BJ36: 6.282738095 | BK36: =IF('T1'!BJ36="","",'T1'!BJ36) -> 6.282738095 | BL36: 6.282738095 | BM36: 16 | BN36: ينتقل | BO36: لوحة الشرف
A37: =IF(TS!A43="","",TS!A43) -> 28 | B37: =IF(TS!B43="","",TS!B43) -> AZ22334482 | C37: =IF(TS!C43="","",TS!C43) -> غفران النسب28 | D37: =IF(TS!G43="","",TS!G43) -> 2012-10-16 | E37: =IF(TS!D43="","",TS!D43) -> أ | F37: =IF(TS!F43="","",TS!F43) -> 1427 | G37: 5.5 | H37: 7 | I37: 6.25 | J37: 2 | K37: 6.5 | L37: 4.25 | M37: 1 | N37: 1 | O37: 1 | P37: 5.75 | Q37: 7.5 | R37: 6.625 | S37: 6 | T37: 6.5 | U37: 6.25 | V37: 6 | W37: 7.5 | X37: 6.75 | Y37: 5.1875 | AC37: 9 | AD37: 6 | AE37: 8.5 | AF37: 7 | AG37: 7.625 | AH37: 5.5 | AI37: 6.25 | AJ37: 5.875 | AK37: 6 | AL37: 8 | AM37: 7 | AN37: 6.5 | AO37: 5 | AP37: 5.75 | AQ37: 7.5 | AR37: 7 | AS37: 7.25 | AT37: 8 | AU37: 6.5 | AV37: 7.25 | AW37: 4 | AX37: 5 | AY37: 4.5 | AZ37: 6 | BA37: 1 | BB37: 3.5 | BC37: 5.625 | BD37: 7 | BE37: 7 | BF37: 7 | BG37: 1 | BH37: =6+BG37+TS!$P$3 -> 7 | BI37: 44.0625 | BJ37: 6.294642857 | BK37: =IF('T1'!BJ37="","",'T1'!BJ37) -> 6.294642857 | BL37: 6.294642857 | BM37: 15 | BN37: ينتقل | BO37: لوحة الشرف
A38: =IF(TS!A44="","",TS!A44) -> 29 | B38: =IF(TS!B44="","",TS!B44) -> AZ22334483 | C38: =IF(TS!C44="","",TS!C44) -> أميرة النسب29 | D38: =IF(TS!G44="","",TS!G44) -> 2012-08-11 | E38: =IF(TS!D44="","",TS!D44) -> أ | F38: =IF(TS!F44="","",TS!F44) -> 1428 | G38: 8 | H38: 9 | I38: 8.5 | J38: 8.5 | K38: 8.75 | L38: 8.625 | M38: 8.75 | N38: 7.5 | O38: 8.125 | P38: 8.5 | Q38: 8 | R38: 8.25 | S38: 7.25 | T38: 9 | U38: 8.125 | V38: 8.75 | W38: 9 | X38: 8.875 | Y38: 8.416666667 | AC38: 7.5 | AD38: 9 | AE38: 8.5 | AF38: 9 | AG38: 8.5 | AH38: 9 | AI38: 7.5 | AJ38: 8.25 | AK38: 8 | AL38: 8 | AM38: 8 | AN38: 8.5 | AO38: 6.25 | AP38: 7.375 | AQ38: 9 | AR38: 7 | AS38: 8 | AT38: 8.5 | AU38: 8.5 | AV38: 8.5 | AW38: 5 | AX38: 7 | AY38: 6 | AZ38: 8 | BA38: 9 | BB38: 8.5 | BC38: 7.75 | BD38: 8 | BE38: 8 | BF38: 8 | BG38: 1 | BH38: =6+BG38+TS!$P$3 -> 7 | BI38: 56.29166667 | BJ38: 8.041666667 | BK38: =IF('T1'!BJ38="","",'T1'!BJ38) -> 8.041666667 | BL38: 8.041666667 | BM38: 2 | BN38: ينتقل | BO38: تنويه
A39: =IF(TS!A45="","",TS!A45) ->  | B39: =IF(TS!B45="","",TS!B45) ->  | C39: =IF(TS!C45="","",TS!C45) ->  | D39: =IF(TS!G45="","",TS!G45) ->  | E39: =IF(TS!D45="","",TS!D45) ->  | F39: =IF(TS!F45="","",TS!F45) ->  | BK39: =IF('T1'!BJ39="","",'T1'!BJ39) -> 
A40: =IF(TS!A46="","",TS!A46) ->  | B40: =IF(TS!B46="","",TS!B46) ->  | C40: =IF(TS!C46="","",TS!C46) ->  | D40: =IF(TS!G46="","",TS!G46) ->  | E40: =IF(TS!D46="","",TS!D46) ->  | F40: =IF(TS!F46="","",TS!F46) ->  | BK40: =IF('T1'!BJ40="","",'T1'!BJ40) -> 
A41: =IF(TS!A47="","",TS!A47) ->  | B41: =IF(TS!B47="","",TS!B47) ->  | C41: =IF(TS!C47="","",TS!C47) ->  | D41: =IF(TS!G47="","",TS!G47) ->  | E41: =IF(TS!D47="","",TS!D47) ->  | F41: =IF(TS!F47="","",TS!F47) ->  | BK41: =IF('T1'!BJ41="","",'T1'!BJ41) -> 
A42: =IF(TS!A48="","",TS!A48) ->  | B42: =IF(TS!B48="","",TS!B48) ->  | C42: =IF(TS!C48="","",TS!C48) ->  | D42: =IF(TS!G48="","",TS!G48) ->  | E42: =IF(TS!D48="","",TS!D48) ->  | F42: =IF(TS!F48="","",TS!F48) ->  | BK42: =IF('T1'!BJ42="","",'T1'!BJ42) -> 
A43: =IF(TS!A49="","",TS!A49) ->  | B43: =IF(TS!B49="","",TS!B49) ->  | C43: =IF(TS!C49="","",TS!C49) ->  | D43: =IF(TS!G49="","",TS!G49) ->  | E43: =IF(TS!D49="","",TS!D49) ->  | F43: =IF(TS!F49="","",TS!F49) ->  | BK43: =IF('T1'!BJ43="","",'T1'!BJ43) -> 
A44: =IF(TS!A50="","",TS!A50) ->  | B44: =IF(TS!B50="","",TS!B50) ->  | C44: =IF(TS!C50="","",TS!C50) ->  | D44: =IF(TS!G50="","",TS!G50) ->  | E44: =IF(TS!D50="","",TS!D50) ->  | F44: =IF(TS!F50="","",TS!F50) ->  | BK44: =IF('T1'!BJ44="","",'T1'!BJ44) -> 
A45: =IF(TS!A51="","",TS!A51) ->  | B45: =IF(TS!B51="","",TS!B51) ->  | C45: =IF(TS!C51="","",TS!C51) ->  | D45: =IF(TS!G51="","",TS!G51) ->  | E45: =IF(TS!D51="","",TS!D51) ->  | F45: =IF(TS!F51="","",TS!F51) ->  | BK45: =IF('T1'!BJ45="","",'T1'!BJ45) -> 
A46: =IF(TS!A52="","",TS!A52) ->  | B46: =IF(TS!B52="","",TS!B52) ->  | C46: =IF(TS!C52="","",TS!C52) ->  | D46: =IF(TS!G52="","",TS!G52) ->  | E46: =IF(TS!D52="","",TS!D52) ->  | F46: =IF(TS!F52="","",TS!F52) ->  | BK46: =IF('T1'!BJ46="","",'T1'!BJ46) -> 
A47: =IF(TS!A53="","",TS!A53) ->  | B47: =IF(TS!B53="","",TS!B53) ->  | C47: =IF(TS!C53="","",TS!C53) ->  | D47: =IF(TS!G53="","",TS!G53) ->  | E47: =IF(TS!D53="","",TS!D53) ->  | F47: =IF(TS!F53="","",TS!F53) ->  | BK47: =IF('T1'!BJ47="","",'T1'!BJ47) -> 
A48: =IF(TS!A54="","",TS!A54) ->  | B48: =IF(TS!B54="","",TS!B54) ->  | C48: =IF(TS!C54="","",TS!C54) ->  | D48: =IF(TS!G54="","",TS!G54) ->  | E48: =IF(TS!D54="","",TS!D54) ->  | F48: =IF(TS!F54="","",TS!F54) ->  | BK48: =IF('T1'!BJ48="","",'T1'!BJ48) -> 
A49: =IF(TS!A55="","",TS!A55) ->  | B49: =IF(TS!B55="","",TS!B55) ->  | C49: =IF(TS!C55="","",TS!C55) ->  | D49: =IF(TS!G55="","",TS!G55) ->  | E49: =IF(TS!D55="","",TS!D55) ->  | F49: =IF(TS!F55="","",TS!F55) ->  | BK49: =IF('T1'!BJ49="","",'T1'!BJ49) -> 
A50: =IF(TS!A56="","",TS!A56) ->  | B50: =IF(TS!B56="","",TS!B56) ->  | C50: =IF(TS!C56="","",TS!C56) ->  | D50: =IF(TS!G56="","",TS!G56) ->  | E50: =IF(TS!D56="","",TS!D56) ->  | F50: =IF(TS!F56="","",TS!F56) ->  | BK50: =IF('T1'!BJ50="","",'T1'!BJ50) -> 
A51: =IF(TS!A57="","",TS!A57) ->  | B51: =IF(TS!B57="","",TS!B57) ->  | C51: =IF(TS!C57="","",TS!C57) ->  | D51: =IF(TS!G57="","",TS!G57) ->  | E51: =IF(TS!D57="","",TS!D57) ->  | F51: =IF(TS!F57="","",TS!F57) ->  | BK51: =IF('T1'!BJ51="","",'T1'!BJ51) -> 
A52: =IF(TS!A58="","",TS!A58) ->  | B52: =IF(TS!B58="","",TS!B58) ->  | C52: =IF(TS!C58="","",TS!C58) ->  | D52: =IF(TS!G58="","",TS!G58) ->  | E52: =IF(TS!D58="","",TS!D58) ->  | F52: =IF(TS!F58="","",TS!F58) ->  | BK52: =IF('T1'!BJ52="","",'T1'!BJ52) -> 
A53: =IF(TS!A59="","",TS!A59) ->  | B53: =IF(TS!B59="","",TS!B59) ->  | C53: =IF(TS!C59="","",TS!C59) ->  | D53: =IF(TS!G59="","",TS!G59) ->  | E53: =IF(TS!D59="","",TS!D59) ->  | F53: =IF(TS!F59="","",TS!F59) ->  | BK53: =IF('T1'!BJ53="","",'T1'!BJ53) -> 
A54: =IF(TS!A60="","",TS!A60) ->  | B54: =IF(TS!B60="","",TS!B60) ->  | C54: =IF(TS!C60="","",TS!C60) ->  | D54: =IF(TS!G60="","",TS!G60) ->  | E54: =IF(TS!D60="","",TS!D60) ->  | F54: =IF(TS!F60="","",TS!F60) ->  | BK54: =IF('T1'!BJ54="","",'T1'!BJ54) -> 
A55: =IF(TS!A61="","",TS!A61) ->  | B55: =IF(TS!B61="","",TS!B61) ->  | C55: =IF(TS!C61="","",TS!C61) ->  | D55: =IF(TS!G61="","",TS!G61) ->  | E55: =IF(TS!D61="","",TS!D61) ->  | F55: =IF(TS!F61="","",TS!F61) ->  | BK55: =IF('T1'!BJ55="","",'T1'!BJ55) -> 
A56: =IF(TS!A62="","",TS!A62) ->  | B56: =IF(TS!B62="","",TS!B62) ->  | C56: =IF(TS!C62="","",TS!C62) ->  | D56: =IF(TS!G62="","",TS!G62) ->  | E56: =IF(TS!D62="","",TS!D62) ->  | F56: =IF(TS!F62="","",TS!F62) ->  | BK56: =IF('T1'!BJ56="","",'T1'!BJ56) -> 
A57: =IF(TS!A63="","",TS!A63) ->  | B57: =IF(TS!B63="","",TS!B63) ->  | C57: =IF(TS!C63="","",TS!C63) ->  | D57: =IF(TS!G63="","",TS!G63) ->  | E57: =IF(TS!D63="","",TS!D63) ->  | F57: =IF(TS!F63="","",TS!F63) ->  | BK57: =IF('T1'!BJ57="","",'T1'!BJ57) -> 
A58: =IF(TS!A64="","",TS!A64) ->  | B58: =IF(TS!B64="","",TS!B64) ->  | C58: =IF(TS!C64="","",TS!C64) ->  | D58: =IF(TS!G64="","",TS!G64) ->  | E58: =IF(TS!D64="","",TS!D64) ->  | F58: =IF(TS!F64="","",TS!F64) ->  | BK58: =IF('T1'!BJ58="","",'T1'!BJ58) -> 
A59: =IF(TS!A65="","",TS!A65) ->  | B59: =IF(TS!B65="","",TS!B65) ->  | C59: =IF(TS!C65="","",TS!C65) ->  | D59: =IF(TS!G65="","",TS!G65) ->  | E59: =IF(TS!D65="","",TS!D65) ->  | F59: =IF(TS!F65="","",TS!F65) ->  | BK59: =IF('T1'!BJ59="","",'T1'!BJ59) -> 
A60: =IF(TS!A66="","",TS!A66) ->  | B60: =IF(TS!B66="","",TS!B66) ->  | C60: =IF(TS!C66="","",TS!C66) ->  | D60: =IF(TS!G66="","",TS!G66) ->  | E60: =IF(TS!D66="","",TS!D66) ->  | F60: =IF(TS!F66="","",TS!F66) ->  | BK60: =IF('T1'!BJ60="","",'T1'!BJ60) -> 
A61: =IF(TS!A67="","",TS!A67) ->  | B61: =IF(TS!B67="","",TS!B67) ->  | C61: =IF(TS!C67="","",TS!C67) ->  | D61: =IF(TS!G67="","",TS!G67) ->  | E61: =IF(TS!D67="","",TS!D67) ->  | F61: =IF(TS!F67="","",TS!F67) ->  | BK61: =IF('T1'!BJ61="","",'T1'!BJ61) -> 
A62: =IF(TS!A68="","",TS!A68) ->  | B62: =IF(TS!B68="","",TS!B68) ->  | C62: =IF(TS!C68="","",TS!C68) ->  | D62: =IF(TS!G68="","",TS!G68) ->  | E62: =IF(TS!D68="","",TS!D68) ->  | F62: =IF(TS!F68="","",TS!F68) ->  | BK62: =IF('T1'!BJ62="","",'T1'!BJ62) -> 
A63: =IF(TS!A69="","",TS!A69) ->  | B63: =IF(TS!B69="","",TS!B69) ->  | C63: =IF(TS!C69="","",TS!C69) ->  | D63: =IF(TS!G69="","",TS!G69) ->  | E63: =IF(TS!D69="","",TS!D69) ->  | F63: =IF(TS!F69="","",TS!F69) ->  | BK63: =IF('T1'!BJ63="","",'T1'!BJ63) -> 
A64: =IF(TS!A70="","",TS!A70) ->  | B64: =IF(TS!B70="","",TS!B70) ->  | C64: =IF(TS!C70="","",TS!C70) ->  | D64: =IF(TS!G70="","",TS!G70) ->  | E64: =IF(TS!D70="","",TS!D70) ->  | F64: =IF(TS!F70="","",TS!F70) ->  | BK64: =IF('T1'!BJ64="","",'T1'!BJ64) -> 
A65: =IF(TS!A71="","",TS!A71) ->  | B65: =IF(TS!B71="","",TS!B71) ->  | C65: =IF(TS!C71="","",TS!C71) ->  | D65: =IF(TS!G71="","",TS!G71) ->  | E65: =IF(TS!D71="","",TS!D71) ->  | F65: =IF(TS!F71="","",TS!F71) ->  | BK65: =IF('T1'!BJ65="","",'T1'!BJ65) -> 
A66: =IF(TS!A72="","",TS!A72) ->  | B66: =IF(TS!B72="","",TS!B72) ->  | C66: =IF(TS!C72="","",TS!C72) ->  | D66: =IF(TS!G72="","",TS!G72) ->  | E66: =IF(TS!D72="","",TS!D72) ->  | F66: =IF(TS!F72="","",TS!F72) ->  | BK66: =IF('T1'!BJ66="","",'T1'!BJ66) -> 
A67: =IF(TS!A73="","",TS!A73) ->  | B67: =IF(TS!B73="","",TS!B73) ->  | C67: =IF(TS!C73="","",TS!C73) ->  | D67: =IF(TS!G73="","",TS!G73) ->  | E67: =IF(TS!D73="","",TS!D73) ->  | F67: =IF(TS!F73="","",TS!F73) ->  | BK67: =IF('T1'!BJ67="","",'T1'!BJ67) -> 
A68: =IF(TS!A74="","",TS!A74) ->  | B68: =IF(TS!B74="","",TS!B74) ->  | C68: =IF(TS!C74="","",TS!C74) ->  | D68: =IF(TS!G74="","",TS!G74) ->  | E68: =IF(TS!D74="","",TS!D74) ->  | F68: =IF(TS!F74="","",TS!F74) ->  | BK68: =IF('T1'!BJ68="","",'T1'!BJ68) -> 
A69: =IF(TS!A75="","",TS!A75) ->  | B69: =IF(TS!B75="","",TS!B75) ->  | C69: =IF(TS!C75="","",TS!C75) ->  | D69: =IF(TS!G75="","",TS!G75) ->  | E69: =IF(TS!D75="","",TS!D75) ->  | F69: =IF(TS!F75="","",TS!F75) ->  | BK69: =IF('T1'!BJ69="","",'T1'!BJ69) -> 
A70: =IF(TS!A76="","",TS!A76) ->  | B70: =IF(TS!B76="","",TS!B76) ->  | C70: =IF(TS!C76="","",TS!C76) ->  | D70: =IF(TS!G76="","",TS!G76) ->  | E70: =IF(TS!D76="","",TS!D76) ->  | F70: =IF(TS!F76="","",TS!F76) ->  | BK70: =IF('T1'!BJ70="","",'T1'!BJ70) -> 
A71: =IF(TS!A77="","",TS!A77) ->  | B71: =IF(TS!B77="","",TS!B77) ->  | C71: =IF(TS!C77="","",TS!C77) ->  | D71: =IF(TS!G77="","",TS!G77) ->  | E71: =IF(TS!D77="","",TS!D77) ->  | F71: =IF(TS!F77="","",TS!F77) ->  | BK71: =IF('T1'!BJ71="","",'T1'!BJ71) -> 
A72: =IF(TS!A78="","",TS!A78) ->  | B72: =IF(TS!B78="","",TS!B78) ->  | C72: =IF(TS!C78="","",TS!C78) ->  | D72: =IF(TS!G78="","",TS!G78) ->  | E72: =IF(TS!D78="","",TS!D78) ->  | F72: =IF(TS!F78="","",TS!F78) ->  | BK72: =IF('T1'!BJ72="","",'T1'!BJ72) -> 
A73: =IF(TS!A79="","",TS!A79) ->  | B73: =IF(TS!B79="","",TS!B79) ->  | C73: =IF(TS!C79="","",TS!C79) ->  | D73: =IF(TS!G79="","",TS!G79) ->  | E73: =IF(TS!D79="","",TS!D79) ->  | F73: =IF(TS!F79="","",TS!F79) ->  | BK73: =IF('T1'!BJ73="","",'T1'!BJ73) -> 
A74: =IF(TS!A80="","",TS!A80) ->  | B74: =IF(TS!B80="","",TS!B80) ->  | C74: =IF(TS!C80="","",TS!C80) ->  | D74: =IF(TS!G80="","",TS!G80) ->  | E74: =IF(TS!D80="","",TS!D80) ->  | F74: =IF(TS!F80="","",TS!F80) ->  | BK74: =IF('T1'!BJ74="","",'T1'!BJ74) -> 
A75: =IF(TS!A81="","",TS!A81) ->  | B75: =IF(TS!B81="","",TS!B81) ->  | C75: =IF(TS!C81="","",TS!C81) ->  | D75: =IF(TS!G81="","",TS!G81) ->  | E75: =IF(TS!D81="","",TS!D81) ->  | F75: =IF(TS!F81="","",TS!F81) ->  | I75: =IF(OR(G75="",H75=""),"",AVERAGE(G75:H75)) ->  | L75: =IF(OR(J75="",K75=""),"",AVERAGE(J75:K75)) ->  | O75: =IF(OR(M75="",N75=""),"",AVERAGE(M75:N75)) ->  | R75: =IF(OR(P75="",Q75=""),"",AVERAGE(P75:Q75)) ->  | U75: =IF(OR(S75="",T75=""),"",AVERAGE(S75:T75)) ->  | X75: =IF(OR(V75="",W75=""),"",AVERAGE(V75:W75)) ->  | Y75: =IF(OR(I75="",L75="",O75="",R75="",U75="",X75=""),"",AVERAGE(I75,L75,O75,R75,U75,X75)) ->  | AG75: =IF(OR(AC75="",AD75="",AE75="",AF75=""),"",AVERAGE(AC75:AF75)) ->  | AJ75: =IF(OR(AH75="",AI75=""),"",AVERAGE(AH75:AI75)) ->  | AM75: =IF(OR(AK75="",AL75=""),"",AVERAGE(AK75:AL75)) ->  | AP75: =IF(OR(AN75="",AO75=""),"",AVERAGE(AN75:AO75)) ->  | AS75: =IF(OR(AQ75="",AR75=""),"",AVERAGE(AQ75:AR75)) ->  | AV75: =IF(OR(AT75="",AU75=""),"",AVERAGE(AT75:AU75)) ->  | AY75: =IF(OR(AW75="",AX75=""),"",AVERAGE(AW75:AX75)) ->  | BB75: =IF(OR(AZ75="",BA75=""),"",AVERAGE(AZ75:BA75)) ->  | BC75: =IF(OR(AS75="",AV75="",AY75="",BB75=""),"",AVERAGE(AS75,AV75,AY75,BB75)) ->  | BF75: =IF(OR(BD75="",BE75=""),"",AVERAGE(BD75:BE75)) ->  | BJ75: =IF(B75="","",BI75/BH75) ->  | BK75: =IF('T1'!BJ75="","",'T1'!BJ75) ->  | BM75: =IF(BL75="","",RANK(BL75,$BL$10:$BL$69)) ->  | BO75: =IF(BJ75="","",IF(BJ75>=8,"تنويه",IF(BJ75>=7,"تشجيع",IF(BJ75>=6,"لوحة الشرف",IF(BJ75>=5,"متوسط",IF(BJ75>=3,"تنبيه","توبيخ")))))) -> 
A76: =IF(TS!A82="","",TS!A82) ->  | B76: =IF(TS!B82="","",TS!B82) ->  | C76: =IF(TS!C82="","",TS!C82) ->  | D76: =IF(TS!G82="","",TS!G82) ->  | E76: =IF(TS!D82="","",TS!D82) ->  | F76: =IF(TS!F82="","",TS!F82) ->  | BK76: =IF('T1'!BJ76="","",'T1'!BJ76) -> 
A77: =IF(TS!A83="","",TS!A83) ->  | B77: =IF(TS!B83="","",TS!B83) ->  | C77: =IF(TS!C83="","",TS!C83) ->  | D77: =IF(TS!G83="","",TS!G83) ->  | E77: =IF(TS!D83="","",TS!D83) ->  | F77: =IF(TS!F83="","",TS!F83) ->  | BK77: =IF('T1'!BJ77="","",'T1'!BJ77) -> 
A78: =IF(TS!A84="","",TS!A84) ->  | B78: =IF(TS!B84="","",TS!B84) ->  | C78: =IF(TS!C84="","",TS!C84) ->  | D78: =IF(TS!G84="","",TS!G84) ->  | E78: =IF(TS!D84="","",TS!D84) ->  | F78: =IF(TS!F84="","",TS!F84) ->  | BK78: =IF('T1'!BJ78="","",'T1'!BJ78) -> 
A79: =IF(TS!A85="","",TS!A85) ->  | B79: =IF(TS!B85="","",TS!B85) ->  | C79: =IF(TS!C85="","",TS!C85) ->  | D79: =IF(TS!G85="","",TS!G85) ->  | E79: =IF(TS!D85="","",TS!D85) ->  | F79: =IF(TS!F85="","",TS!F85) ->  | BK79: =IF('T1'!BJ79="","",'T1'!BJ79) -> 
A80: =IF(TS!A86="","",TS!A86) ->  | B80: =IF(TS!B86="","",TS!B86) ->  | C80: =IF(TS!C86="","",TS!C86) ->  | D80: =IF(TS!G86="","",TS!G86) ->  | E80: =IF(TS!D86="","",TS!D86) ->  | F80: =IF(TS!F86="","",TS!F86) ->  | BK80: =IF('T1'!BJ80="","",'T1'!BJ80) -> 
A81: =IF(TS!A87="","",TS!A87) ->  | B81: =IF(TS!B87="","",TS!B87) ->  | C81: =IF(TS!C87="","",TS!C87) ->  | D81: =IF(TS!G87="","",TS!G87) ->  | E81: =IF(TS!D87="","",TS!D87) ->  | F81: =IF(TS!F87="","",TS!F87) ->  | BK81: =IF('T1'!BJ81="","",'T1'!BJ81) -> 
A82: =IF(TS!A88="","",TS!A88) ->  | B82: =IF(TS!B88="","",TS!B88) ->  | C82: =IF(TS!C88="","",TS!C88) ->  | D82: =IF(TS!G88="","",TS!G88) ->  | E82: =IF(TS!D88="","",TS!D88) ->  | F82: =IF(TS!F88="","",TS!F88) ->  | BK82: =IF('T1'!BJ82="","",'T1'!BJ82) -> 
A83: =IF(TS!A89="","",TS!A89) ->  | B83: =IF(TS!B89="","",TS!B89) ->  | C83: =IF(TS!C89="","",TS!C89) ->  | D83: =IF(TS!G89="","",TS!G89) ->  | E83: =IF(TS!D89="","",TS!D89) ->  | F83: =IF(TS!F89="","",TS!F89) ->  | BK83: =IF('T1'!BJ83="","",'T1'!BJ83) -> 
A84: =IF(TS!A90="","",TS!A90) ->  | B84: =IF(TS!B90="","",TS!B90) ->  | C84: =IF(TS!C90="","",TS!C90) ->  | D84: =IF(TS!G90="","",TS!G90) ->  | E84: =IF(TS!D90="","",TS!D90) ->  | F84: =IF(TS!F90="","",TS!F90) ->  | BK84: =IF('T1'!BJ84="","",'T1'!BJ84) -> 
A85: =IF(TS!A91="","",TS!A91) ->  | B85: =IF(TS!B91="","",TS!B91) ->  | C85: =IF(TS!C91="","",TS!C91) ->  | D85: =IF(TS!G91="","",TS!G91) ->  | E85: =IF(TS!D91="","",TS!D91) ->  | F85: =IF(TS!F91="","",TS!F91) ->  | BK85: =IF('T1'!BJ85="","",'T1'!BJ85) -> 
A86: =IF(TS!A92="","",TS!A92) ->  | B86: =IF(TS!B92="","",TS!B92) ->  | C86: =IF(TS!C92="","",TS!C92) ->  | D86: =IF(TS!G92="","",TS!G92) ->  | E86: =IF(TS!D92="","",TS!D92) ->  | F86: =IF(TS!F92="","",TS!F92) ->  | BK86: =IF('T1'!BJ86="","",'T1'!BJ86) -> 
A87: =IF(TS!A93="","",TS!A93) ->  | B87: =IF(TS!B93="","",TS!B93) ->  | C87: =IF(TS!C93="","",TS!C93) ->  | D87: =IF(TS!G93="","",TS!G93) ->  | E87: =IF(TS!D93="","",TS!D93) ->  | F87: =IF(TS!F93="","",TS!F93) ->  | BK87: =IF('T1'!BJ87="","",'T1'!BJ87) ->  | BM87: =IF(BJ87="","",RANK(BJ87,$BJ$10:$BJ$69)) -> 
A88: =IF(TS!A94="","",TS!A94) ->  | B88: =IF(TS!B94="","",TS!B94) ->  | C88: =IF(TS!C94="","",TS!C94) ->  | D88: =IF(TS!G94="","",TS!G94) ->  | E88: =IF(TS!D94="","",TS!D94) ->  | F88: =IF(TS!F94="","",TS!F94) ->  | BK88: =IF('T1'!BJ88="","",'T1'!BJ88) -> 
A89: =IF(TS!A95="","",TS!A95) ->  | B89: =IF(TS!B95="","",TS!B95) ->  | C89: =IF(TS!C95="","",TS!C95) ->  | D89: =IF(TS!G95="","",TS!G95) ->  | E89: =IF(TS!D95="","",TS!D95) ->  | F89: =IF(TS!F95="","",TS!F95) ->  | BK89: =IF('T1'!BJ89="","",'T1'!BJ89) -> 
A90: =IF(TS!A96="","",TS!A96) ->  | B90: =IF(TS!B96="","",TS!B96) ->  | C90: =IF(TS!C96="","",TS!C96) ->  | D90: =IF(TS!G96="","",TS!G96) ->  | E90: =IF(TS!D96="","",TS!D96) ->  | F90: =IF(TS!F96="","",TS!F96) ->  | BK90: =IF('T1'!BJ90="","",'T1'!BJ90) -> 
A91: =IF(TS!A97="","",TS!A97) ->  | B91: =IF(TS!B97="","",TS!B97) ->  | C91: =IF(TS!C97="","",TS!C97) ->  | D91: =IF(TS!G97="","",TS!G97) ->  | E91: =IF(TS!D97="","",TS!D97) ->  | F91: =IF(TS!F97="","",TS!F97) ->  | BK91: =IF('T1'!BJ91="","",'T1'!BJ91) -> 
A92: =IF(TS!A98="","",TS!A98) ->  | B92: =IF(TS!B98="","",TS!B98) ->  | C92: =IF(TS!C98="","",TS!C98) ->  | D92: =IF(TS!G98="","",TS!G98) ->  | E92: =IF(TS!D98="","",TS!D98) ->  | F92: =IF(TS!F98="","",TS!F98) ->  | BK92: =IF('T1'!BJ92="","",'T1'!BJ92) -> 
A93: =IF(TS!A99="","",TS!A99) ->  | B93: =IF(TS!B99="","",TS!B99) ->  | C93: =IF(TS!C99="","",TS!C99) ->  | D93: =IF(TS!G99="","",TS!G99) ->  | E93: =IF(TS!D99="","",TS!D99) ->  | F93: =IF(TS!F99="","",TS!F99) ->  | BK93: =IF('T1'!BJ93="","",'T1'!BJ93) -> 
A94: =IF(TS!A100="","",TS!A100) ->  | B94: =IF(TS!B100="","",TS!B100) ->  | C94: =IF(TS!C100="","",TS!C100) ->  | D94: =IF(TS!G100="","",TS!G100) ->  | E94: =IF(TS!D100="","",TS!D100) ->  | F94: =IF(TS!F100="","",TS!F100) ->  | BK94: =IF('T1'!BJ94="","",'T1'!BJ94) -> 
A95: =IF(TS!A101="","",TS!A101) ->  | B95: =IF(TS!B101="","",TS!B101) ->  | C95: =IF(TS!C101="","",TS!C101) ->  | D95: =IF(TS!G101="","",TS!G101) ->  | E95: =IF(TS!D101="","",TS!D101) ->  | F95: =IF(TS!F101="","",TS!F101) ->  | BK95: =IF('T1'!BJ95="","",'T1'!BJ95) -> 
A96: =IF(TS!A102="","",TS!A102) ->  | B96: =IF(TS!B102="","",TS!B102) ->  | C96: =IF(TS!C102="","",TS!C102) ->  | D96: =IF(TS!G102="","",TS!G102) ->  | E96: =IF(TS!D102="","",TS!D102) ->  | F96: =IF(TS!F102="","",TS!F102) ->  | BK96: =IF('T1'!BJ96="","",'T1'!BJ96) -> 
A97: =IF(TS!A103="","",TS!A103) ->  | B97: =IF(TS!B103="","",TS!B103) ->  | C97: =IF(TS!C103="","",TS!C103) ->  | D97: =IF(TS!G103="","",TS!G103) ->  | E97: =IF(TS!D103="","",TS!D103) ->  | F97: =IF(TS!F103="","",TS!F103) ->  | BK97: =IF('T1'!BJ97="","",'T1'!BJ97) -> 
A98: =IF(TS!A104="","",TS!A104) ->  | B98: =IF(TS!B104="","",TS!B104) ->  | C98: =IF(TS!C104="","",TS!C104) ->  | D98: =IF(TS!G104="","",TS!G104) ->  | E98: =IF(TS!D104="","",TS!D104) ->  | F98: =IF(TS!F104="","",TS!F104) ->  | BK98: =IF('T1'!BJ98="","",'T1'!BJ98) -> 
A99: =IF(TS!A105="","",TS!A105) ->  | B99: =IF(TS!B105="","",TS!B105) ->  | C99: =IF(TS!C105="","",TS!C105) ->  | D99: =IF(TS!G105="","",TS!G105) ->  | E99: =IF(TS!D105="","",TS!D105) ->  | F99: =IF(TS!F105="","",TS!F105) ->  | BK99: =IF('T1'!BJ99="","",'T1'!BJ99) -> 
A100: =IF(TS!A106="","",TS!A106) ->  | B100: =IF(TS!B106="","",TS!B106) ->  | C100: =IF(TS!C106="","",TS!C106) ->  | D100: =IF(TS!G106="","",TS!G106) ->  | E100: =IF(TS!D106="","",TS!D106) ->  | F100: =IF(TS!F106="","",TS!F106) ->  | BK100: =IF('T1'!BJ100="","",'T1'!BJ100) -> 
C101: =IF(TS!C107="","",TS!C107) -> 

Sheet B2
K1: الموسم الدراسي | N1: =IF(TS!$M$1="","",TS!$M$1) -> 2020-2019
K2: الاسم و النسب | N2: =IF(N7="","",VLOOKUP(N5,base2,3,0)) -> ياسين النسب1
A3: =IF(TS!$A$5="","",TS!$A$5) -> الأكاديمية الجهوية للتربية والتكوين | K3: الرقم الوطني | N3: =IF(N7="","",VLOOKUP(N5,base2,2,0)) -> AZ22334455
A4: =IF(TS!$A$6="","",TS!$A$6) -> جهة: الدارالبيضاء-سطات | K4: رقم التسجيل | N4: =IF(N7="","",VLOOKUP(N5,base2,6,0)) -> 1400
A5: =IF(TS!$A$7="","",TS!$A$7) -> مديرية :المحمدية | K5: رقم ت في القسم | N5: 1
A6: =IF(TS!$A$8="","",TS!$A$8) -> مؤسسة :النجاح | K6: المستوى | N6: =IF(TS!$M$3="","",TS!$M$3) -> الأول
K7: عدد التلاميذ | N7: =IF(TS!$O$12=0,"",TS!$O$12) -> 29
B9: بطاقة المراقبة المستمرة
C12: مدرسة | I12: =IF(TS!$M$4="","",TS!$M$4) -> المركزية
C13: الاسم والنسب | I13: =IF(N7="","",VLOOKUP(N5,base2,3,0)) -> ياسين النسب1
B15: نتائج الأسدوس الثاني
A17: الوحدات | D17: الانشطة | G17: الدورة الأولى | M17: ملاحظات
G18: النقطة1 | I18: النقطة2 | L18: المعدل
A19: اللغة العربية | D19: التعبيرالكتابي | G19: =IF(N7="","",VLOOKUP(N5,base2,7,0)) -> 6 | I19: =IF(N7="","",VLOOKUP(N5,base2,8,0)) -> 6 | L19: =IF(N7="","",VLOOKUP(N5,base2,9,0)) -> 6 | M19: =IF(L25="","",IF(L25>=9,"عمل ممتاز",IF(L25>=8,"نتائج حسنة",IF(L25>=7,"عمل مستحسن",IF(L25>=6,"نتائج لابأس بها",IF(L25>=5,"عمل متوسط",IF(L25>=4,"عمل دون متوسط","عليك بالاجتهاد أكثر"))))))) -> عمل متوسط
D20: القراءة | G20: =IF(N7="","",VLOOKUP(N5,base2,10,0)) -> 4 | I20: =IF(N7="","",VLOOKUP(N5,base2,11,0)) -> 5 | L20: =IF(N7="","",VLOOKUP(N5,base2,12,0)) -> 4.5
D21: الإملاء | G21: =IF(N7="","",VLOOKUP(N5,base2,13,0)) -> 3 | I21: =IF(N7="","",VLOOKUP(N5,base2,14,0)) -> 8 | L21: =IF(N7="","",VLOOKUP(N5,base2,15,0)) -> 5.5
D22: الخط | G22: =IF(N7="","",VLOOKUP(N5,base2,16,0)) -> 6 | I22: =IF(N7="","",VLOOKUP(N5,base2,17,0)) -> 6.5 | L22: =IF(N7="","",VLOOKUP(N5,base2,18,0)) -> 6.25
D23: الاستماع والتحدث | G23: =IF(N7="","",VLOOKUP(N5,base2,19,0)) -> 4 | I23: =IF(N7="","",VLOOKUP(N5,base2,20,0)) -> 5.5 | L23: =IF(N7="","",VLOOKUP(N5,base2,21,0)) -> 4.75
D24: النقل | G24: =IF(N7="","",VLOOKUP(N5,base2,22,0)) -> 6.75 | I24: =IF(N7="","",VLOOKUP(N5,base2,23,0)) -> 7 | L24: =IF(N7="","",VLOOKUP(N5,base2,24,0)) -> 6.875
D25: معدل الوحدة | L25: =IF(N7="","",VLOOKUP(N5,base2,25,0)) -> 5.645833333
A26: اللغة | D26: الأمازيغية | G26: =IF(TS!$P$3=0,"",VLOOKUP(N5,base2,26,0)) ->  | I26: =IF(TS!$P$3=0,"",VLOOKUP(N5,base2,27,0)) ->  | L26: =IF(TS!$P$3=0,"",VLOOKUP(N5,base2,28,0)) ->  | M26: =IF(L27="","الأمازيغية غير معممة",IF(L27>=9,"عمل ممتاز",IF(L27>=8,"نتائج حسنة",IF(L27>=7,"عمل مستحسن",IF(L27>=6,"نتائج لابأس بها",IF(L27>=5,"عمل متوسط",IF(L27>=4,"عمل دون متوسط","عليك بالاجتهاد أكثر"))))))) -> الأمازيغية غير معممة
A27: الأمازيغية | D27: معدل الوحدة
A28: التربية | D28: الفرض 1 | G28: =IF(N7="","",VLOOKUP(N5,base2,29,0)) -> 5 | L28: =IF(N7="","",VLOOKUP(N5,base2,29,0)) -> 5 | M28: =IF(L32="","",IF(L32>=9,"عمل ممتاز",IF(L32>=8,"نتائج حسنة",IF(L32>=7,"عمل مستحسن",IF(L32>=6,"نتائج لابأس بها",IF(L32>=5,"عمل متوسط",IF(L32>=4,"عمل دون متوسط","عليك بالاجتهاد أكثر"))))))) -> عمل دون متوسط
D29: الفرض 2 | G29: =IF(N7="","",VLOOKUP(N5,base2,30,0)) -> 4 | L29: =IF(N7="","",VLOOKUP(N5,base2,30,0)) -> 4
A30: الإسلامية | D30: الفرض 3 | G30: =IF(N7="","",VLOOKUP(N5,base2,31,0)) -> 5 | L30: =IF(N7="","",VLOOKUP(N5,base2,31,0)) -> 5
D31: أنشطة | G31: =IF(N7="","",VLOOKUP(N5,base2,32,0)) -> 4 | L31: =IF(N7="","",VLOOKUP(N5,base2,32,0)) -> 4
D32: معدل الوحدة | L32: =IF(N7="","",VLOOKUP(N5,base2,33,0)) -> 4.5
A33: النشاط | D33: النشاط العلمي | G33: =IF(N7="","",VLOOKUP(N5,base2,34,0)) -> 6.5 | I33: =IF(N7="","",VLOOKUP(N5,base2,35,0)) -> 4 | L33: =IF(N7="","",VLOOKUP(N5,base2,36,0)) -> 5.25 | M33: =IF(L33="","",IF(L33>=9,"عمل ممتاز",IF(L33>=8,"نتائج حسنة",IF(L33>=7,"عمل مستحسن",IF(L33>=6,"نتائج لابأس بها",IF(L33>=5,"عمل متوسط",IF(L33>=4,"عمل دون متوسط","عليك بالاجتهاد أكثر"))))))) -> عمل متوسط
A34: العلمي | D34: معدل الوحدة
A35: التربية | D35: التربية الفنية | G35: =IF(N7="","",VLOOKUP(N5,base2,37,0)) -> 5 | I35: =IF(N7="","",VLOOKUP(N5,base2,38,0)) -> 7 | L35: =IF(N7="","",VLOOKUP(N5,base2,39,0)) -> 6 | M35: =IF(L35="","",IF(L35>=9,"عمل ممتاز",IF(L35>=8,"نتائج حسنة",IF(L35>=7,"عمل مستحسن",IF(L35>=6,"نتائج لابأس بها",IF(L35>=5,"عمل متوسط",IF(L35>=4,"عمل دون متوسط","عليك بالاجتهاد أكثر"))))))) -> نتائج لابأس بها
A36: الفنية | D36: معدل الوحدة
A37: الرياضيات | D37: الرياضيات | G37: =IF(N7="","",VLOOKUP(N5,base2,40,0)) -> 3 | I37: =IF(N7="","",VLOOKUP(N5,base2,41,0)) -> 3 | L37: =IF(N7="","",VLOOKUP(N5,base2,42,0)) -> 3 | M37: =IF(L37="","",IF(L37>=9,"عمل ممتاز",IF(L37>=8,"نتائج حسنة",IF(L37>=7,"عمل مستحسن",IF(L37>=6,"نتائج لابأس بها",IF(L37>=5,"عمل متوسط",IF(L37>=4,"عمل دون متوسط","عليك بالاجتهاد أكثر"))))))) -> عليك بالاجتهاد أكثر
D38: معدل الوحدة
A39: الفرنسية | D39: Comptine/chant | G39: =IF(N7="","",VLOOKUP(N5,base2,43,0)) -> 4 | I39: =IF(N7="","",VLOOKUP(N5,base2,44,0)) -> 3 | L39: =IF(N7="","",VLOOKUP(N5,base2,45,0)) -> 3.5 | M39: =IF(L43="","",IF(L43>=9," Excellent travail, Félicitations",IF(L43>=8," Résultats encourageants, bon travail",IF(L43>=7," Bon travail",IF(L43>=6, "Assez bien ",IF(L43>=5," Travail moyen",IF(L43>=4," Travail insuffisant Attention",IF(L43>=3,"Travail faible Attention","Résultats médiocres Attention")))))))) -> Travail faible Attention
D40: Graphisme | G40: =IF(N7="","",VLOOKUP(N5,base2,46,0)) -> 7.5 | I40: =IF(N7="","",VLOOKUP(N5,base2,47,0)) -> 6 | L40: =IF(N7="","",VLOOKUP(N5,base2,48,0)) -> 6.75
D41: Act.orales | G41: =IF(N7="","",VLOOKUP(N5,base2,49,0)) -> 3 | I41: =IF(N7="","",VLOOKUP(N5,base2,50,0)) -> 4 | L41: =IF(N7="","",VLOOKUP(N5,base2,51,0)) -> 3.5
D42: Projet de classe | G42: =IF(N7="","",VLOOKUP(N5,base2,52,0)) -> 1 | I42: =IF(N7="","",VLOOKUP(N5,base2,53,0)) -> 1 | L42: =IF(N7="","",VLOOKUP(N5,base2,54,0)) -> 1
D43: معدل الوحدة | L43: =IF(N7="","",VLOOKUP(N5,base2,55,0)) -> 3.6875
A44: التربية | D44: التربية البدنية | G44: =IF(N7="","",VLOOKUP(N5,base2,56,0)) -> 7 | I44: =IF(N7="","",VLOOKUP(N5,base2,57,0)) -> 8 | L44: =IF(N7="","",VLOOKUP(N5,base2,58,0)) -> 7.5 | M44: =IF(L44="","",IF(L44>=9,"عمل ممتاز",IF(L44>=8,"نتائج حسنة",IF(L44>=7,"عمل مستحسن",IF(L44>=6,"نتائج لابأس بها",IF(L44>=5,"عمل متوسط",IF(L44>=4,"عمل دون متوسط","عليك بالاجتهاد أكثر"))))))) -> عمل مستحسن
A45: البدنية | D45: معدل الوحدة
A47: مجموع معدل الوحدات | E47: =IF(N7="","",VLOOKUP(N5,base2,61,0)) -> 35.58333333 | H47: الميزة | L47: خاتم و توقيع رئيس المؤسسة
A48: معدل د2 | E48: =IF(N7="","",VLOOKUP(N5,base2,62,0)) -> 5.083333333 | H48: =IF(N7="","",VLOOKUP(N5,base2,67,0)) -> متوسط
A49: معدل د1 | E49: =IF(N7="","",VLOOKUP(N5,base2,63,0)) -> 5.083333333 | H49: القرار
A50: المعدل السنوي | E50: =IF(N7="","",VLOOKUP(N5,base2,64,0)) -> 5.083333333 | H50: =IF(N7="","",VLOOKUP(N5,base2,66,0)) -> ينتقل
A51: الرتبة | E51: =IF(N7="","",VLOOKUP(N5,base2,65,0)) -> 23
